Cogmind - Beta 16 @@@ ROGUE MODE // 2025.10.30 @ 00:44:21 Player: Plexion Result: Destroyed by Hotshot with Improved Heavy Laser Performance ------------- Evolutions (8) 4000 Regions Visited (29) 5800 Robots Destroyed (335) 1675 Value Destroyed (17111) 17111 Prototype IDs (101) 2020 Alien Tech Used (5) 1000 Bonus (10976) 10976 TOTAL SCORE: 42582 Bonus ------- High Alert Combat Kills 251 Follower Combat Kills 1612 Destroyed Unchained 1000 Entered Garrisons 400 Used RIF Installer 1500 Network Hubs Disabled 200 Aligned with FarCom 300 Met Zhirov 300 Built Enhanced Grunts 300 Met R17 at Cetus 500 Used Core Reset Matrix 3000 Met R17 at Research 2000 Friendly Fire -387 Cogmind --------- Core Integrity 0/1450 Matter 290/300 Energy 78/100 System Corruption 30% Temperature Cool (27) Movement Core (50) Location -2/Protoforge Parts ------- > --- POWER (3) -------- (None) > --- PROPULSION (6) --- (None) > --- UTILITY (12) ----- (None) > --- WEAPON (2) ------- (None) > --- INVENTORY (5) ---- Femtoactuators High-powered Transdimensional Reconstructor Subatomic Replicator Enhanced Nova Cannon Long-range Missile Launcher Peak State ------------ > --- POWER ------------ Particle Reactor Light Quantum Reactor Light Quantum Reactor > --- PROPULSION ------- Biometal Leg Centrium Leg Heavy Shield Leg Heavy Shield Leg > --- UTILITY ---------- High-capacity Storage Unit Experimental Sensor Array Experimental Signal Interpreter Advanced Melee Analysis Suite Experimental Melee Analysis Suite Femtoactuators SHELL Armor Advanced Force Field Improved Hacking Suite Experimental Hacking Suite > --- WEAPON ----------- Cooled Nova Cannon Advanced Remote Datajack > --- INVENTORY -------- Light Quantum Reactor Light Quantum Reactor Biometal Leg Centrium Leg Heavy Shield Leg Experimental Matter Compressor Seismic Detector Weapon Mount Femtoactuators Experimental ECM Suite Graphene Brace Dimensional Node Initializer Transdimensional Reconstructor High-powered Transdimensional Reconstructor Subatomic Replicator HERF Cannon Guided Plasma Cannon Enhanced Nova Cannon Long-range Missile Launcher [Rating: 209] Favorites ----------- Power Light Quantum Reactor Engine Improved Ion Engine Power Core Enhanced Fission Core Reactor Light Quantum Reactor Propulsion Armored Leg Treads Light Treads Leg Armored Leg Wheel Wheel Flight Unit Improved Flight Unit Utility Experimental Melee Analysis Suite Device Experimental Sensor Array Storage High-capacity Storage Unit Processor Experimental Melee Analysis Suite Hackware Hacking Suite Protection Centrium Medium Armor Plating Weapon 1C-UTU's Sword "Lootmaker" Energy Gun Variable Charge Gun Energy Cannon Cooled Nova Cannon Ballistic Gun Heavy Assault Rifle Ballistic Cannon Assault Cannon Launcher Long-range Missile Launcher Special Weapon Remote Datajack Slashing Weapon 1C-UTU's Sword "Lootmaker" Build | -11 -10 -10 -9 -9 -9 -8 -8 -7 -7 -6 -6 -6 -6 -6 -5 -5 -5 -5 -5 -5 -4 -4 -4 -4 -3 -3 -2 -2 -2 ------- Run | Yrd Mat Min Mat Min Exi Min Mat Fac Gar Fac Ext Cet Arc Hub Fac Gar Fac Upp Upp Zhi Pro Fac Arm Lab Res Tes Res Qua Frg Slots Evolved 16 | . . . 2 . . . 2 2 . 2 . . . . 2 . . . . . . 2 . . 2 . 2 . . Power 2 | . . . . . . . . . . . . . . . 1 . . . . . . . . . . . 1 . . Propulsion 4 | . . . 1 . . . 1 . . 1 . . . . . . . . . . . . . . 1 . . . . Utility 10 | . . . 1 . . . 1 2 . 1 . . . . 1 . . . . . . 2 . . 1 . 1 . . Weapon . | . . . . . . . . . . . . . . . . . . . . . . . . . . . . . . Parts Attached 250 | 7 1 2 22 1 7 11 23 3 10 16 2 4 . 1 8 2 14 . 1 4 . 15 7 1 10 24 17 25 12 Power 39 | 1 . . 2 . . . 1 . 2 . . 1 . . 1 1 3 . . 1 . 2 1 . 1 5 6 8 3 Engine 7 | 1 . . 2 . . . 1 . 2 . . . . . . . 1 . . . . . . . . . . . . Core 4 | . . . . . . . . . . . . . . . 1 . 2 . . . . . . . . . . 1 . Reactor 28 | . . . . . . . . . . . . 1 . . . 1 . . . 1 . 2 1 . 1 5 6 7 3 Propulsion 80 | 2 . . 10 . 1 2 12 1 4 6 . 1 . . . . 4 . . 1 . 5 2 . 3 6 7 9 4 Treads 21 | 2 . . 10 . . . 8 . . . . . . . . . . . . . . 1 . . . . . . . Leg 51 | . . . . . . 1 1 . 4 6 . 1 . . . . 4 . . 1 . 4 2 . 3 6 7 9 2 Wheel 7 | . . . . . 1 1 2 1 . . . . . . . . . . . . . . . . . . . . 2 Hover . | . . . . . . . . . . . . . . . . . . . . . . . . . . . . . . Flight 1 | . . . . . . . 1 . . . . . . . . . . . . . . . . . . . . . . Utility 91 | 2 1 . 4 1 5 4 6 2 3 7 1 1 . 1 7 . 4 . . 2 . 8 3 1 6 8 4 6 4 Device 30 | 1 . . 1 1 1 1 . 1 . 2 . . . . 1 . 1 . . 1 . 3 2 1 2 2 2 5 2 Storage 7 | 1 1 . 1 . . 1 1 . . 1 . . . . . . . . . . . . . . . 1 . . . Processor 12 | . . . . . . 1 . . . 1 . . . . 2 . 2 . . . . 2 . . 2 . . . 2 Hackware 19 | . . . . . . . 2 1 . 2 1 . . 1 2 . 1 . . . . 3 . . 1 2 2 1 . Protection 23 | . . . 2 . 4 1 3 . 3 1 . 1 . . 2 . . . . 1 . . 1 . 1 3 . . . Artifact . | . . . . . . . . . . . . . . . . . . . . . . . . . . . . . . Weapon 40 | 2 . 2 6 . 1 5 4 . 1 3 1 1 . . . 1 3 . 1 . . . 1 . . 5 . 2 1 Energy Gun 3 | . . . . . . . . . . . . . . . . . 1 . . . . . . . . 2 . . . Energy Cannon 6 | . . . . . . . . . 1 . . . . . . 1 . . . . . . 1 . . 1 . 1 1 Ballistic Gun 15 | 2 . . 5 . . 2 3 . . . . 1 . . . . 1 . . . . . . . . 1 . . . Ballistic Cannon 2 | . . . . . . . 1 . . . 1 . . . . . . . . . . . . . . . . . . Launcher 5 | . . 1 1 . . 1 . . . 2 . . . . . . . . . . . . . . . . . . . Special Weapon 4 | . . 1 . . . . . . . 1 . . . . . . . . 1 . . . . . . 1 . . . Impact Weapon . | . . . . . . . . . . . . . . . . . . . . . . . . . . . . . . Slashing Weapon 5 | . . . . . 1 2 . . . . . . . . . . 1 . . . . . . . . . . 1 . Piercing Weapon . | . . . . . . . . . . . . . . . . . . . . . . . . . . . . . . Special Melee Weapon . | . . . . . . . . . . . . . . . . . . . . . . . . . . . . . . Unidentified Prototypes 38 | . . . 1 1 1 8 2 . . 1 . 1 . . 1 . 2 . . 3 . 1 1 . 2 10 . 2 1 Corrupted Parts 3 | . . . . . . . . . . . . 1 . . . 1 1 . . . . . . . . . . . . System Corruption 9 | . . . . . . . . . . . . 4 . . . 4 1 . . . . . . . . . . . . Parts Lost 79 | . . . 2 . 4 . 8 . 2 . . . . . 2 4 1 . . . . 7 2 . . 7 1 12 27 Power 17 | . . . 1 . . . . . . . . . . . . 2 . . . . . 1 1 . . 3 . 3 6 Propulsion 30 | . . . . . 3 . 5 . 2 . . . . . . . . . . . . 4 . . . 3 1 4 8 Utility 23 | . . . 1 . 1 . . . . . . . . . 2 2 . . . . . 2 1 . . 1 . 3 10 Weapon 9 | . . . . . . . 3 . . . . . . . . . 1 . . . . . . . . . . 2 3 Highest Loss Streak 11 | . . . 2 . 4 . 2 . 2 . . . . . 1 4 1 . . . . 4 1 . . 2 1 3 11 To Critical Strikes 4 | . . . . . 2 . 1 . . . . . . . . . . . . . . . . . . . . 1 . Average Backups 18 | 2 8 11 15 19 15 7 22 23 24 19 19 19 20 19 18 19 19 20 20 19 20 19 19 19 19 19 18 18 17 Power . | . 1 1 . 1 . . . . . . . . 1 1 1 . . . . . . . . . . . 1 1 . Propulsion 2 | 1 2 2 4 5 3 1 3 4 2 2 4 3 2 2 2 2 2 3 3 2 2 1 2 2 1 . 2 1 . Utility 9 | . . . 3 6 5 2 10 12 15 14 12 12 13 12 11 13 13 13 13 13 13 13 11 12 12 12 9 7 7 Weapon 5 | . 4 8 5 6 7 4 8 7 6 2 2 4 3 3 3 3 2 3 3 3 3 3 4 4 4 5 5 4 3 Tool/Special . | . . . . . . . . . . . . . . . . . . . . . . . . . . . . . . Unused Backups 50 | . . . 9 . 2 2 4 . 4 7 . 1 . . . . 5 . . . . 2 . . 4 3 . 4 3 Power 2 | . . . . . . 1 . . . . . . . . . . . . . . . . . . . . . 1 . Propulsion 19 | . . . 2 . . . 3 . 3 1 . 1 . . . . 4 . . . . . . . 2 3 . . . Utility 13 | . . . 1 . 1 . . . . 5 . . . . . . 1 . . . . 2 . . . . . 3 . Weapon 12 | . . . 6 . . 1 1 . 1 1 . . . . . . . . . . . . . . 2 . . . . Tool/Special 4 | . . . . . 1 . . . . . . . . . . . . . . . . . . . . . . . 3 Average Slot Usage (%) 93 | . 100 100 96 100 99 51 96 99 97 99 100 93 93 93 91 94 97 100 99 99 100 96 94 94 96 94 88 83 79 Engine 4 | . 14 14 10 11 11 4 9 7 7 6 6 5 6 6 2 1 . . . . . . . . . . . . . Core 1 | . . . . . . . . . . . . . . . 2 4 6 11 11 7 5 4 . . . . . . 1 Reactor 3 | . . . . . . . . . . . . . . . . . 2 . . 2 5 5 9 10 9 8 11 11 8 Treads 9 | . 28 28 32 33 29 10 23 4 . . . . . . . . . . . . . 1 . . . . . . . Leg 16 | . . . . . . . 1 7 11 33 33 33 33 33 29 29 29 29 29 29 29 22 21 21 24 24 25 19 19 Wheel 2 | . . . . . 2 3 8 18 16 . . . . . . . . . . . . . . . . . . . . Device 8 | . 14 14 8 11 5 1 2 7 6 5 5 . . . 7 4 5 5 4 5 5 11 15 21 18 16 12 14 14 Storage 6 | . 14 14 11 11 11 4 9 7 7 6 6 6 6 6 5 5 5 5 5 5 5 5 5 5 4 4 4 4 3 Processor 10 | . . . . . . 4 9 7 7 12 13 13 13 13 11 11 16 17 17 17 17 15 15 15 14 14 13 13 13 Hackware 7 | . . . . . . . 7 14 15 8 16 13 13 13 10 16 11 11 11 8 5 9 7 5 8 10 8 6 3 Protection 6 | . . . 10 11 16 3 7 7 7 11 3 6 6 6 6 4 5 5 5 7 11 7 6 5 4 4 4 4 3 Energy Cannon 1 | . . . . . . . . . . . . . 1 . . 3 . . . . 3 1 2 5 4 . 2 3 3 Ballistic Gun 6 | . 28 27 21 22 16 12 14 7 13 . . . 6 1 . . . . . . . . . . . . . . . Special Weapon 1 | . . . . . . . . . . 2 5 6 1 5 1 . . . . . . 2 2 . . 3 1 . . Slashing Weapon 4 | . . . . . 5 5 . 7 . 8 6 . 3 5 9 6 10 11 9 9 5 5 5 5 4 4 4 3 3 Peak Build Rating 209 | 7 8 10 18 28 30 54 55 60 71 95 86 83 87 87 105 99 104 104 104 116 114 143 156 152 170 177 199 209 194 Average Rating 93 | 5 7 8 14 18 20 23 43 58 65 83 77 79 86 81 95 92 100 103 102 107 113 125 150 147 162 160 186 195 166 On Entrance 85 | . 7 8 10 18 18 25 40 54 59 71 83 81 82 87 80 89 86 104 95 104 107 114 127 152 147 164 170 199 192 Avg Prop Armor Cover (%) 14 | . . . . . 15 19 16 8 5 . . . . . . . . . . . . 12 . . . 5 . 4 . Naked Turns 8 | . . . . . . 1 . . . . . . . . . . . . . . . . . . . . . . 7 Heaviest Build 153 | 13 28 28 74 59 61 63 106 109 115 71 70 75 80 73 76 92 86 88 90 87 86 92 108 96 110 117 140 153 143 Greatest Support 178 | 40 40 40 60 60 60 60 80 34 60 80 80 80 80 80 80 80 84 84 84 105 105 109 135 135 168 163 174 178 155 Greatest Overweight (x) 31 | . . . 1 . 3 7 10 4 7 . . . . . . 1 1 1 1 . . 1 . . . 1 . 1 31 Average Overweight (x) . | . . . . . 1 1 5 3 2 . . . . . . . . . . . . . . . . . . . . Largest Inventory Capacity 25 | 8 15 15 20 20 20 20 25 25 25 25 20 20 20 20 20 20 20 20 20 20 20 20 20 20 20 20 20 20 20 Average Capacity 20 | 7 14 15 17 20 20 11 24 25 25 20 20 20 20 20 20 20 20 20 20 20 20 20 20 20 20 20 20 20 19 Most Carried 25 | 4 11 14 20 20 20 20 25 24 25 24 20 20 20 20 20 20 20 20 20 20 20 20 20 19 20 20 20 20 20 Average Carried 19 | 2 8 11 16 19 18 9 23 23 24 19 19 19 20 19 18 19 19 20 20 19 20 19 19 19 19 19 18 19 18 Final Capacity 25 | 8 15 15 20 20 20 20 25 25 25 20 20 20 20 20 20 20 20 20 20 20 20 20 20 20 20 20 20 20 5 Final Carried 25 | 4 11 14 20 20 20 20 25 23 25 20 20 20 20 19 20 19 20 20 20 20 20 20 19 19 20 19 20 20 5 Class Distribution -------------------- 58% | Scavenger-Mutant 11% | Bothacker-Mutant 10% | Bothacker-Gladiator 7% | Mutant 5% | Scavenger-Gladiator Dominant Class ---------------- Mutant | -10/Materials Mutant | -10/Mines Scavenger-Mutant | -9/Materials Scavenger-Mutant | -9/Mines Scavenger-Mutant | -9/Exiles Mutant | -8/Mines Scavenger-Mutant | -8/Materials Scavenger-Mutant | -7/Factory Scavenger-Mutant | -7/Garrison Bothacker-Mutant | -6/Factory Bothacker-Mutant | -6/Extension Commander-Mutant | -6/Cetus Commander-Mutant | -6/Archives Scavenger-Mutant | -6/Hub_04(d) Scavenger-Gladiator | -5/Factory Bothacker-Mutant | -5/Garrison Bothacker-Gladiator | -5/Factory Bothacker-Gladiator | -5/Upper Caves Bothacker-Gladiator | -5/Upper Caves Bothacker-Gladiator | -5/Zhirov Bothacker-Mutant | -4/Proximity Caves Bothacker-Mutant | -4/Factory Scavenger-Mutant | -4/Armory Scavenger-Mutant | -4/Lab Scavenger-Mutant | -3/Research Scavenger-Mutant | -3/Testing Scavenger-Assassin | -2/Research Scavenger-Mutant | -2/Quarantine Scavenger-Mutant | -2/Protoforge Resources | -11 -10 -10 -9 -9 -9 -8 -8 -7 -7 -6 -6 -6 -6 -6 -5 -5 -5 -5 -5 -5 -4 -4 -4 -4 -3 -3 -2 -2 -2 ----------- Run | Yrd Mat Min Mat Min Exi Min Mat Fac Gar Fac Ext Cet Arc Hub Fac Gar Fac Upp Upp Zhi Pro Fac Arm Lab Res Tes Res Qua Frg Matter Collected 10584 | 197 . 167 632 102 89 803 1799 . 598 260 421 167 . 22 245 189 509 . 308 113 90 473 226 . 237 924 392 1312 309 Remotely . | . . . . . . . . . . . . . . . . . . . . . . . . . . . . . . Salvage Created 18157 | 10 . 161 1070 71 . 454 2240 . 671 213 628 50 . 22 690 600 1147 . 854 176 . 1450 884 . 458 2154 741 2378 1035 Parts 971 | 2 . 17 70 14 . 27 144 . 34 14 40 1 . 1 35 29 50 . 18 2 . 70 62 . 26 125 35 92 63 Haulers Intercepted 15 | . . . 3 . . . 5 . . 1 . . . . . . 3 . . . . 1 . . 2 . . . . Recyclers Shooed 1 | . . . . . . . . . . . . . . . . . . . . . . 1 . . . . . . . Parts Field Recycled . | . . . . . . . . . . . . . . . . . . . . . . . . . . . . . . Retrieved Matter . | . . . . . . . . . . . . . . . . . . . . . . . . . . . . . . Parts Self-Destructed 10 | . . . . . . . . . . . . . . . . . . . 7 . 3 . . . . . . . . Prevented . | . . . . . . . . . . . . . . . . . . . . . . . . . . . . . . Parts Restored . | . . . . . . . . . . . . . . . . . . . . . . . . . . . . . . Kills | -11 -10 -10 -9 -9 -9 -8 -8 -7 -7 -6 -6 -6 -6 -6 -5 -5 -5 -5 -5 -5 -4 -4 -4 -4 -3 -3 -2 -2 -2 ------- Run | Yrd Mat Min Mat Min Exi Min Mat Fac Gar Fac Ext Cet Arc Hub Fac Gar Fac Upp Upp Zhi Pro Fac Arm Lab Res Tes Res Qua Frg Combat Hostiles Destroyed 262 | . . 6 22 6 . 6 47 . 15 1 12 . . . 12 11 9 . 4 . . 19 11 . 2 23 8 32 16 Melee 114 | . . . . . . . . . . 1 6 . . . 12 4 8 . 1 . . 12 11 . 2 23 8 22 4 Guns 59 | . . 3 11 3 . 3 29 . 10 . . . . . . . . . . . . . . . . . . . . Cannons 29 | . . . . . . . 4 . . . . . . . . 3 1 . 3 . . 2 . . . . . 7 9 AOE 57 | . . 3 11 3 . 3 14 . 5 . 6 . . . . 3 . . . . . 5 . . . . . 3 1 Classes Destroyed 23 | 1 . 2 6 1 . . 3 . . 1 . . . . . 2 . . 1 . . 1 . . . 2 1 1 1 Worker 14 | . . . . 1 . . 4 . . . . . . 1 1 . 2 . . . . 2 . . 2 . 1 . . Builder 9 | . . . 1 . . 1 1 . . 1 3 . . . . . . . . . . 1 . . . . . . 1 Tunneler 2 | 1 . . . 1 . . . . . . . . . . . . . . . . . . . . . . . . . Hauler 15 | . . . 3 . . . 5 . . 1 . . . . . . 3 . . . . 1 . . 2 . . . . Recycler 11 | . . . 3 . . 1 2 . . . 1 . . . . . 2 . . . . 2 . . . . . . . Mechanic 3 | . . . . . . . . . . . . . . . . 1 . . . . . 1 . . . 1 . . . Operator 7 | . . . . . . . 4 . . . . . . . 1 . . . . . . . 1 . . . . 1 . Drone 1 | . . . . . . . . . . . . . . . . . . . . . . . . . . . . . 1 Watcher 10 | . . . 2 . . . 1 . . 1 . . . . . . . . . . . . 1 . 1 2 . 2 . Swarmer 56 | . . 3 4 6 . . 15 . 4 . 6 . . . 4 6 . . . . . 5 . . . . . 3 . Grunt 63 | . . 3 12 . . 4 18 . 8 . . . . . . . 3 . 2 . . 3 . . . 3 3 4 . Brawler 3 | . . . . . . . . . . . . . . . . 1 . . . . . . . . . . . 2 . Duelist 8 | . . . 1 . . 1 1 . . . . . . . . . . . . . . 1 3 . . . 1 . . Researcher 1 | . . . . . . . . . . . . . . . . . . . . . . . . . . 1 . . . Sentry 41 | . . . 5 . . . 10 . 3 . 6 . . . 3 3 1 . 1 . . 3 1 . . 4 1 . . Demolisher 1 | . . . . . . . 1 . . . . . . . . . . . . . . . . . . . . . . Specialist 1 | . . . . . . . . . . . . . . . . . . . . . . 1 . . . . . . . Hunter 18 | . . . . . . . 2 . . . . . . . 2 1 1 . . . . . 2 . . . . 2 8 Programmer 56 | . . . . . . . . . . 1 . . . . 3 . 4 . . . . 6 5 . 2 12 2 15 6 Cetus Guard 1 | . . . . . . . . . . . . . . . . . . . . . . . . . . 1 . . . CL-0N3 Special 2 | . . . . . . . . . . . . . . . . . . . . . . . . . . . 1 1 . Hotshot 1 | . . . . . . . . . . . . . . . . . . . . . . . . . . . . . 1 Combat Programmer 4 | . . . . . . . . . . . . . . . . . . . . . . . . . . 2 . 2 . Executioner 1 | . . . . . . . . . . . . . . . . . . . . . . . . . . 1 . . . Alpha 7 2 | . . . . . . . . . . . . . . . . . . . . . . . . . . . . 2 . Thug 1 | . . . . . . . . . . . . 1 . . . . . . . . . . . . . . . . . Mutant 1 | . . . . . . . . . . . . . . . . . . . 1 . . . . . . . . . . Best Kill Streak 11 | 1 . 3 7 4 . 3 6 . 8 1 5 . . 1 4 5 5 . 2 . . 11 3 . 2 3 4 3 4 Combat Bots Only 8 | . . 3 4 3 . 3 6 . 8 1 3 . . . 4 5 5 . 2 . . 6 3 . 2 3 4 3 4 Max Kills in Single Turn 6 | 1 . 3 4 4 . 3 6 . 2 1 3 1 . 1 1 3 1 . 1 . . 4 1 . 1 1 1 2 1 Gunslinging 1 | . . . . . . . 1 . . . . . . . . . . . . . . . . . . . . . . Exploded 4 | . . 3 4 3 . 3 4 . 2 . 2 . . . . 3 . . . . . 2 . . . . . 2 1 Melee 1 | . . . . . . . . . . 1 1 . . . 1 1 1 . 1 . . 1 1 . 1 1 1 1 1 Uniques/NPCs Destroyed 2 | . . . . . . 1 . . . . . . . . . . . . . . . . . . . . . 1 . 1C-UTU (-8/Mines) CL-0N3 (-2/Quarantine) Combat | -11 -10 -10 -9 -9 -9 -8 -8 -7 -7 -6 -6 -6 -6 -6 -5 -5 -5 -5 -5 -5 -4 -4 -4 -4 -3 -3 -2 -2 -2 -------- Run | Yrd Mat Min Mat Min Exi Min Mat Fac Gar Fac Ext Cet Arc Hub Fac Gar Fac Upp Upp Zhi Pro Fac Arm Lab Res Tes Res Qua Frg Hostile Shots Fired 2228 | . . 21 43 15 55 18 193 . 68 19 82 2 . 30 73 93 48 . 6 . . 245 65 . 9 205 88 502 348 Missed 665 | . . 5 14 4 7 8 54 . 27 6 38 2 . 17 22 23 12 . 1 . . 106 22 . 4 54 16 128 95 Deflected 3 | . . . . . . . . . . . . . . . . . . . . . . . . . . . . 3 . Hits 1563 | . . 16 29 11 48 10 139 . 41 13 44 . . 13 51 70 36 . 5 . . 139 43 . 5 151 72 374 253 Melee 30 | . . . . . . . 1 . . . . . . . . . . . . . . 8 15 . . . 2 4 . Projectile 1533 | . . 16 29 11 48 10 138 . 41 13 44 . . 13 51 70 36 . 5 . . 131 28 . 5 151 70 370 253 AOE 1 | . . . . . . . 1 . . . . . . . . . . . . . . . . . . . . . . Critical Strikes 112 | . . . . . 23 1 5 . . . . . . 1 4 2 1 . . . . 6 5 . 1 12 5 37 9 Actively Blocked 34 | . . . . . . . . . . . . . . . . . . . . . . 1 3 . . 2 2 23 3 Part Disruptions 17 | . . . . . . . . . . . . . . . . . . . . . . . . . . 5 . 8 4 Actively Blocked 2 | . . . . . . . . . . . . . . . . . . . . . . . . . . 2 . . . Damage Taken 27175 | . . 199 363 102 864 206 2113 . 556 171 308 28 . 376 684 1001 605 . 80 . . 2180 996 . 60 1796 1631 6087 6769 Core 2616 | . . 27 24 13 62 37 155 . 31 38 32 . . 43 55 129 49 . . . . 176 38 . . 235 92 242 1138 Absorbed by Shields 6226 | . . . . . . . . . . 4 67 . . . 181 244 84 . 23 . . 558 63 . 12 1161 437 3238 154 Redirected to Shielding 247 | . . . . . . . . . . . . . . . . . . . . . . 154 . . . 93 . . . Ignored by Resistances 1292 | . . . . . . . . . . . . . . . . . . . . . . 96 65 . 48 1083 . . . Regen/Repaired (Parts) 6704 | . . . . . . . 139 . . . . . . . . 37 . . . . . 1041 . . 28 455 708 2588 1708 Core Remaining (%) 82 | 100 . 89 . . . 66 71 . 95 . . . . 86 . . . . . . 76 . . 75 . 81 . . . Volleys Fired 690 | 4 3 18 51 5 1 76 175 . 35 6 27 15 4 4 2 32 14 . 15 . 4 16 4 . 6 19 4 79 71 Largest 2 | 2 2 2 2 2 1 2 2 . 2 1 1 1 1 1 1 1 1 . 1 . 1 1 1 . 1 1 1 1 1 Hottest 225 | 40 40 100 46 46 23 60 62 . 120 120 120 44 120 35 120 120 225 . 120 . 120 120 120 . 120 150 50 150 150 Shots Fired 928 | 8 6 33 96 8 1 85 313 . 60 6 27 15 4 5 2 30 15 . 15 . 4 16 4 . 6 19 4 78 68 Gun 578 | 8 6 30 90 6 1 84 291 . 52 . . . . 2 . . 4 . . . . . . . . 4 . . . Cannon 254 | . . . . . . . 18 . 2 1 10 9 4 . 1 18 11 . 11 . 4 7 4 . 6 3 4 73 68 Launcher 37 | . . 1 6 2 . 1 4 . 6 1 4 . . . . 6 . . . . . 4 . . . . . 2 . Special 59 | . . 2 . . . . . . . 4 13 6 . 3 1 6 . . 4 . . 5 . . . 12 . 3 . Kinetic 601 | 8 6 30 90 6 1 84 309 . 52 . . 9 . 2 . . . . . . . . . . . 4 . . . Thermal 189 | . . 2 . . . . . . 2 1 10 . 4 . 1 1 4 . 11 . 4 7 4 . 6 3 4 73 52 Explosive 37 | . . 1 6 2 . 1 4 . 6 1 4 . . . . 6 . . . . . 4 . . . . . 2 . Electromagnetic 44 | . . . . . . . . . . . . . . . . 17 11 . . . . . . . . . . . 16 Robot Hit Streak 19 | 3 2 11 13 8 2 16 14 . 6 8 15 2 . 2 2 9 1 . 5 . . 7 . . 1 4 . 19 10 Robot Miss Streak 8 | 2 3 2 3 1 . 5 5 . 3 . 1 2 . 1 . 8 4 . . . . 1 . . 2 1 . 3 4 Penetration Max 2 | . . . . . . 2 1 . 1 . . . . . . . . . . . . . . . . . . . . Secondary Targets 7 | . . . 2 . . 1 3 . 1 . . . . . . . . . . . . . . . . . . . . Max Gunslinging Chain 1 | . . . 1 . . 1 1 . 1 . . . . . . . . . . . . . . . . . . . . Shots Hit Robots 1152 | 5 2 23 64 4 21 53 207 . 29 12 33 4 . 4 32 23 38 . 19 4 . 61 42 . 15 154 51 194 58 Core Hits 532 | 2 1 13 45 8 5 19 97 . 24 4 16 2 . 1 15 19 16 . 11 4 . 39 20 . 6 52 19 74 20 Critical Kills 27 | . . . . . . 2 5 . 10 1 1 . . . . . 2 . 3 . . 1 . . . 1 . 1 . Critical Parts Destroyed 34 | . . . 1 . . 8 3 . 11 . 2 . . . 2 . 4 . . . . . . . . 1 . 2 . Critical Strikes 173 | . . . 1 . 3 11 11 . 21 2 5 . . . 6 . 10 . 3 . . 11 8 . 3 38 11 27 2 Destroy 69 | . . . 1 . . 11 11 . 21 1 4 . . . 2 . 6 . 3 . . 1 . . . 2 . 6 . Sever 104 | . . . . . 3 . . . . 1 1 . . . 4 . 4 . . . . 10 8 . 3 36 11 21 2 Melee Attacks 959 | . . . . . 31 . 14 1 4 51 19 . 9 6 60 12 89 . 33 4 11 84 62 . 34 158 61 191 25 Impact . | . . . . . . . . . . . . . . . . . . . . . . . . . . . . . . Slashing 959 | . . . . . 31 . 14 1 4 51 19 . 9 6 60 12 89 . 33 4 11 84 62 . 34 158 61 191 25 Piercing . | . . . . . . . . . . . . . . . . . . . . . . . . . . . . . . Sneak Attacks 43 | . . . . . 1 . 5 . . 2 5 . . 1 2 . 7 . . . . 4 6 . 4 2 1 1 2 Combat Hostiles 6 | . . . . . . . . . . . 1 . . . . . . . . . . . 5 . . . . . . Follow-up Attacks 17 | . . . . . . . . . . . 2 . . . 5 1 6 . . . . 1 . . . 1 . 1 . Damage Inflicted 49383 | 42 30 301 1862 320 674 1153 5037 . 1088 485 1826 161 . 106 1695 1556 2425 . 2211 583 . 3701 1993 . 907 6917 2286 9435 2589 Guns 5789 | 40 30 178 960 47 18 946 2970 . 548 . . . . 19 . . . . . . . . . . . 33 . . . Cannons 5086 | . . . . . . . 171 . . . . 161 . . . 277 70 . 405 . . 178 . . 75 . . 2051 1698 Explosions 5690 | . . 114 886 251 . 207 1216 . 540 . 665 . . . . 610 . . . . . 889 . . . . . 312 . Melee 32731 | . . . . . 656 . 642 . . 485 1161 . . 87 1695 669 2355 . 1806 583 . 2634 1993 . 832 6884 2286 7072 891 Ramming 87 | 2 . 9 16 22 . . 38 . . . . . . . . . . . . . . . . . . . . . . Kinetic 6121 | 40 30 178 960 47 18 946 3141 . 548 . . 161 . 19 . . . . . . . . . . . 33 . . . Thermal 4755 | . . . 127 70 . 81 509 . . . . . . . . 34 . . 405 . . 178 . . 75 . . 2051 1225 Explosive 4903 | . . 114 759 181 . 126 707 . 540 . 665 . . . . 610 . . . . . 889 . . . . . 312 . Electromagnetic 786 | . . . . . . . . . . . . . . . . 243 70 . . . . . . . . . . . 473 Impact . | . . . . . . . . . . . . . . . . . . . . . . . . . . . . . . Slashing 32731 | . . . . . 656 . 642 . . 485 1161 . . 87 1695 669 2355 . 1806 583 . 2634 1993 . 832 6884 2286 7072 891 Piercing . | . . . . . . . . . . . . . . . . . . . . . . . . . . . . . . Highest Corruption 49 | . . . . . . . . . . 2 2 6 6 8 5 9 15 15 15 15 15 4 7 7 . 13 6 49 49 Average Corruption 12 | . . . . . . . . . . 1 2 2 6 6 4 5 10 15 15 15 15 3 4 7 . 10 5 28 23 Corruption Purged . | . . . . . . . . . . . . . . . . . . . . . . . . . . . . . . Corruption Blocked . | . . . . . . . . . . . . . . . . . . . . . . . . . . . . . . Effects 430 | . . . . . . . . . . 16 14 7 2 10 2 10 55 9 25 7 14 12 29 2 . 42 6 132 36 Message Errors 94 | . . . . . . . . . . 2 3 5 2 3 . 3 10 . 4 1 3 2 5 . . 12 1 32 6 Matter Fused 103 | . . . . . . . . . . 4 3 1 . 3 . 2 17 6 9 1 6 4 10 1 . 4 1 23 8 Heat Flow Errors 58 | . . . . . . . . . . 2 4 . . . 2 1 8 . 2 1 1 4 5 1 . 7 2 13 5 Energy Discharges 50 | . . . . . . . . . . 3 1 . . . . 2 5 . 4 1 3 . 4 . . 8 2 15 2 Parts Rejected 6 | . . . . . . . . . . . . . . . . . . . . . . . . . . 3 . 3 . Parts Fused 5 | . . . . . . . . . . . 1 . . . . . . . . . . . . . . . . 4 . Data Loss (minor) 50 | . . . . . . . . . . 3 2 . . 1 . . 5 2 5 1 . 2 3 . . 6 . 16 4 Data Loss (major) 25 | . . . . . . . . . . 1 . 1 . 2 . . 3 . . 1 1 . 2 . . 1 . 12 1 Misfires 7 | . . . . . . . . . . . . . . 1 . . 2 . . . . . . . . . . 3 1 Alerts 15 | . . . . . . . . . . 1 . . . . . . 4 1 1 1 . . . . . 1 . 5 1 Misdirections 6 | . . . . . . . . . . . . . . . . . . . . . . . . . . . . 2 4 Weapon Failures 11 | . . . . . . . . . . . . . . . . 2 1 . . . . . . . . . . 4 4 Overload Shots 8 | . . . . . . . . . . . . . . . . . 3 . . . . . . . . 1 . 2 2 Effects 1 | . . . . . . . . . . . . . . . . . . . . . . . . . . . . 1 . Short Circuit 1 | . . . . . . . . . . . . . . . . . . . . . . . . . . . . 1 . Overflow Damage 3520 | . . . 32 36 . . 204 . . 16 147 . . . 230 17 363 . 993 . . 313 234 . 107 193 68 379 188 Projectiles 268 | . . . . . . . . . . . . . . . . 17 . . 21 . . . . . . . . 143 87 Explosions 301 | . . . 32 36 . . 81 . . . 20 . . . . . . . . . . 123 . . . . . 9 . Melee 2951 | . . . . . . . 123 . . 16 127 . . . 230 . 363 . 972 . . 190 234 . 107 193 68 227 101 Knockbacks 2 | . . . . . . . 1 . . . . 1 . . . . . . . . . . . . . . . . . Impact . | . . . . . . . . . . . . . . . . . . . . . . . . . . . . . . Kinetic 2 | . . . . . . . 1 . . . . 1 . . . . . . . . . . . . . . . . . Secondary . | . . . . . . . . . . . . . . . . . . . . . . . . . . . . . . Self-Inflicted Damage 328 | . . . . 18 . 33 156 . 16 . . . . . . 52 . . . . . 53 . . . . . . . Shots 8 | . . . . 1 . 2 2 . 1 . . . . . . 1 . . . . . 1 . . . . . . . Rammed 10 | 2 . 2 2 1 . . 3 . . . . . . . . . . . . . . . . . . . . . . Targets Rammed 12 | 2 . 2 3 1 . . 4 . . . . . . . . . . . . . . . . . . . . . . Kicked . | . . . . . . . . . . . . . . . . . . . . . . . . . . . . . . Crushed 2 | . . . 1 . . . 1 . . . . . . . . . . . . . . . . . . . . . . Highest Temperature 506 | . . 40 14 . . 16 87 . 152 260 222 . 160 18 156 202 364 . 506 84 116 228 240 218 84 234 229 271 166 Average Temperature 65 | . . 12 3 . . 10 24 . 28 100 68 . 76 10 63 71 105 . 141 43 41 84 81 110 32 79 112 74 81 Received Heat Transfer 2623 | . . 105 141 . 15 108 738 . 180 6 46 . . 6 21 78 39 . 27 . . 185 13 . . 185 87 166 477 Effects 4 | . . . . . . . . . . . . . . . . . . . 2 . . . . . . . . 2 . Energy Bleed 1 | . . . . . . . . . . . . . . . . . . . 1 . . . . . . . . . . Interference 2 | . . . . . . . . . . . . . . . . . . . . . . . . . . . . 2 . Damage (minor) 1 | . . . . . . . . . . . . . . . . . . . 1 . . . . . . . . . . Siege Activations . | . . . . . . . . . . . . . . . . . . . . . . . . . . . . . . Martial Activations . | . . . . . . . . . . . . . . . . . . . . . . . . . . . . . . Shielding Activations 4 | . . . . . . . . . . . . . . . . . . . . . . . 1 . . . . 3 . Total Turns 38 | . . . . . . . . . . . . . . . . . . . . . . . 14 . . . . 24 . Longest Duration 14 | . . . . . . . . . . . . . . . . . . . . . . . 14 . . . . 11 . Robots Disrupted . | . . . . . . . . . . . . . . . . . . . . . . . . . . . . . . Combat Hostiles . | . . . . . . . . . . . . . . . . . . . . . . . . . . . . . . Robots Corrupted 3 | . . . . . . . . . . . . . . . . 1 . . . . . . . . . . . . 2 Combat Hostiles 3 | . . . . . . . . . . . . . . . . 1 . . . . . . . . . . . . 2 Parts Fried 6 | . . . . . . . . . . . . . . . . . 1 . . . . . . . . . . . 5 Impact Corruptions 1 | . . . . . . . 1 . . . . . . . . . . . . . . . . . . . . . . Robots Melted . | . . . . . . . . . . . . . . . . . . . . . . . . . . . . . . Combat Hostiles . | . . . . . . . . . . . . . . . . . . . . . . . . . . . . . . Parts Melted 6 | . . . . . . . . . . . . . . . . . . . . . . 1 . . . . . 5 . Heat Transferred 4851 | . . . 100 100 . 100 300 . . . . . . . . 80 . . 880 . . 320 . . 46 . . 1950 975 Parts Sabotaged . | . . . . . . . . . . . . . . . . . . . . . . . . . . . . . . Parts Stolen . | . . . . . . . . . . . . . . . . . . . . . . . . . . . . . . Parts Stripped . | . . . . . . . . . . . . . . . . . . . . . . . . . . . . . . Power Chain Reactions 1 | . . . . . . . . . . . . . . . . . . . . . . 1 . . . . . . . Alert | -11 -10 -10 -9 -9 -9 -8 -8 -7 -7 -6 -6 -6 -6 -6 -5 -5 -5 -5 -5 -5 -4 -4 -4 -4 -3 -3 -2 -2 -2 ------- Run | Yrd Mat Min Mat Min Exi Min Mat Fac Gar Fac Ext Cet Arc Hub Fac Gar Fac Upp Upp Zhi Pro Fac Arm Lab Res Tes Res Qua Frg Maximum Alert Level 3 | . . . 2 1 . . 2 1 3 2 . . . . . 2 1 . . . . 1 . . . . . 1 . Low Security (%) 71 | 100 100 100 23 72 . 100 32 . 3 31 100 100 100 100 100 75 94 . . . . 65 100 . 100 100 100 88 100 Level 1 21 | . . . 75 27 . . 44 100 22 64 . . . . . 17 5 . . . . 34 . . . . . 11 . Level 2 5 | . . . 1 . . . 23 . 30 4 . . . . . 7 . . . . . . . . . . . . . Level 3 1 | . . . . . . . . . 43 . . . . . . . . . . . . . . . . . . . . Level 4 . | . . . . . . . . . . . . . . . . . . . . . . . . . . . . . . Level 5 . | . . . . . . . . . . . . . . . . . . . . . . . . . . . . . . High Security . | . . . . . . . . . . . . . . . . . . . . . . . . . . . . . . Max Security . | . . . . . . . . . . . . . . . . . . . . . . . . . . . . . . Sterilizations 1 | . . . . . . . 1 . . . . . . . . . . . . . . . . . . . . . . Peak Influence 808 | 5 . 79 495 262 . 150 672 290 808 424 146 142 57 173 103 430 225 . . . . 354 188 . 53 142 116 233 155 Initial 424 | . . . . 192 . . . 278 153 424 9 64 42 4 68 49 225 . . . . 150 171 . . 1 74 46 126 Average 144 | . . 10 259 150 . 20 287 259 578 231 44 77 36 89 45 165 73 . . . . 139 66 . 13 51 33 106 95 Influence Increases 10943 | 5 . 151 1045 212 . 242 1681 31 695 246 585 307 20 279 378 481 441 . 60 12 26 1001 348 . 235 713 286 1024 439 Destroy 0b10 Robot/C 5660 | . . 120 580 120 . 100 1040 . 360 20 280 160 . 100 240 280 180 . 60 . 20 380 220 . 40 400 140 520 300 Destroy 0b10 Robot/NC 410 | 5 . . 50 10 . 10 85 . . 15 25 10 . 15 10 5 35 . . 10 5 35 10 . 25 20 5 15 10 Destroy Leader 1064 | . . 20 152 20 . 10 252 . 30 14 42 . . 40 50 10 56 . . . . 62 52 . 16 74 30 84 50 Allied During Kill 461 | . . . 27 11 . . 8 . 5 . 116 133 . 95 . 14 . . . 2 1 4 . . . 45 . . . Successful Hack 634 | . . . 6 . . . 41 30 15 72 43 . . 8 14 12 57 . . . . 108 . . 118 29 60 21 . Select Force Hacks 110 | . . . . . . . 60 . . . . . . . . . . . . . . 50 . . . . . . . Disable Machine 825 | . . . 180 30 . 30 75 . 15 30 15 . 15 . 15 45 15 . . . . 15 30 . . 105 15 150 45 Anti-Garrison Action 150 | . . . . . . . . . 150 . . . . . . . . . . . . . . . . . . . . Destroy Structure 909 | . . 11 50 21 . 32 90 1 60 50 34 4 5 21 34 70 68 . . . . 92 36 . 36 10 36 114 34 Advance Influence 150 | . . . . . . . . . . . . . . . . . . . . . . 150 . . . . . . . Partial Spotted 60 | . . . . . . . . . . . 15 . . . . . 15 . . . . . . . . 15 . 15 . Lose Combat Pursuer 510 | . . . . . . 60 30 . 60 45 15 . . . 15 45 15 . . . . 105 . . . 15 . 105 . Influence Decreases 10943 | 5 . 151 550 683 24 242 1068 425 106 1033 490 317 114 151 448 121 720 151 60 12 26 651 557 141 232 583 336 882 664 Entered New Map 2120 | . . . . 303 24 . . 335 66 384 12 52 64 8 72 21 205 57 . . . . 179 141 . 2 59 37 99 Time Decay 7048 | 5 . 151 490 380 . 157 668 90 . 469 338 205 50 103 346 . 505 94 60 12 6 531 368 . 232 471 277 685 355 Lost Part 660 | . . . 20 . . . 80 . 20 . . . . . 10 40 10 . . . . 70 10 . . 70 . 120 210 Lost Ally 665 | . . . 40 . . 85 20 . 20 30 140 60 . 40 20 60 . . . . 20 50 . . . 40 . 40 . Purge Threat 450 | . . . . . . . 300 . . 150 . . . . . . . . . . . . . . . . . . . Squads Dispatched 71 | . . . . . . . 10 . . 4 1 . . 2 7 . 5 . . . . 8 6 . 3 10 1 9 5 Investigation 9 | . . . . . . . 4 . . . 1 . . . 1 . 1 . . . . 1 . . 1 . . . . Extermination 30 | . . . . . . . . . . 2 . . . . 1 . 3 . . . . 4 3 . 1 5 1 7 3 Reinforcement 22 | . . . . . . . 2 . . 2 . . . 2 2 . 1 . . . . 3 3 . 1 2 . 2 2 Assault 2 | . . . . . . . . . . . . . . . 2 . . . . . . . . . . . . . . Garrison 8 | . . . . . . . 4 . . . . . . . 1 . . . . . . . . . . 3 . . . Intercept . | . . . . . . . . . . . . . . . . . . . . . . . . . . . . . . Searches Triggered . | . . . . . . . . . . . . . . . . . . . . . . . . . . . . . . Unchained Authorized 3 | . . . . . . . . . . . . . . . . . . . . . . . . . . 1 1 1 . Construction Impeded . | . . . . . . . . . . . . . . . . . . . . . . . . . . . . . . Haulers Reinforced 2 | . . . . . . . . . . . . . . . . . 1 . . . . . . . 1 . . . . Active Scanning Responses . | . . . . . . . . . . . . . . . . . . . . . . . . . . . . . . Cargo Convoy Interrupts 2 | . . . . . . . . . . . . . . . 1 . . . . . . 1 . . . . . . . Stealth | -11 -10 -10 -9 -9 -9 -8 -8 -7 -7 -6 -6 -6 -6 -6 -5 -5 -5 -5 -5 -5 -4 -4 -4 -4 -3 -3 -2 -2 -2 --------- Run | Yrd Mat Min Mat Min Exi Min Mat Fac Gar Fac Ext Cet Arc Hub Fac Gar Fac Upp Upp Zhi Pro Fac Arm Lab Res Tes Res Qua Frg Distress Signals 25 | . . . 4 . . . 6 . . 1 . 2 . . 3 . . . . . . 1 . . 3 1 . 2 2 Communications Jammed 142 | . . . . . . . . . . . . . . 17 34 . . . . . . 42 22 . 19 8 . . . Distress Signals 118 | . . . . . . . . . . . . . . 17 34 . . . . . . 18 22 . 19 8 . . . Times Spotted 502 | . 1 7 40 4 3 16 89 . 18 9 19 8 . 14 29 19 16 . 2 . . 37 22 . 19 35 10 55 30 Peak Tracking Total 11 | . 1 3 5 3 3 4 7 . 5 2 4 5 . 6 8 6 5 . 3 . 1 9 4 . 4 4 4 6 11 Tactical Retreats 29 | . . . . . . 4 2 . 4 2 1 . . . 1 2 1 . . . . 3 . . . 1 . 5 3 ECM-based Alert Blocks 10 | . . . . . . . . . . . . . . . . . . . . . . . . . . . . . 10 ID Masks Used 1 | . . . . . . . . . . . . . . . . . . . . . . . . . . . . . 1 IFF Responses 196 | . . . . . . . . . . . . . . . . . . . . . . . . . . . . . 196 Traps | -11 -10 -10 -9 -9 -9 -8 -8 -7 -7 -6 -6 -6 -6 -6 -5 -5 -5 -5 -5 -5 -4 -4 -4 -4 -3 -3 -2 -2 -2 ------- Run | Yrd Mat Min Mat Min Exi Min Mat Fac Gar Fac Ext Cet Arc Hub Fac Gar Fac Upp Upp Zhi Pro Fac Arm Lab Res Tes Res Qua Frg Traps Triggered 26 | . . . 2 . . . 1 . 3 1 1 . . . 1 1 3 . . . . 1 3 . . 5 . 3 1 Indirectly . | . . . . . . . . . . . . . . . . . . . . . . . . . . . . . . Trap Hack Attempts . | . . . . . . . . . . . . . . . . . . . . . . . . . . . . . . Triggered . | . . . . . . . . . . . . . . . . . . . . . . . . . . . . . . Disarmed . | . . . . . . . . . . . . . . . . . . . . . . . . . . . . . . Reprogrammed . | . . . . . . . . . . . . . . . . . . . . . . . . . . . . . . Reused . | . . . . . . . . . . . . . . . . . . . . . . . . . . . . . . Traps Extracted . | . . . . . . . . . . . . . . . . . . . . . . . . . . . . . . Installed . | . . . . . . . . . . . . . . . . . . . . . . . . . . . . . . Triggered . | . . . . . . . . . . . . . . . . . . . . . . . . . . . . . . Machines | -11 -10 -10 -9 -9 -9 -8 -8 -7 -7 -6 -6 -6 -6 -6 -5 -5 -5 -5 -5 -5 -4 -4 -4 -4 -3 -3 -2 -2 -2 ---------- Run | Yrd Mat Min Mat Min Exi Min Mat Fac Gar Fac Ext Cet Arc Hub Fac Gar Fac Upp Upp Zhi Pro Fac Arm Lab Res Tes Res Qua Frg Machines Disabled 62 | . . . 13 2 . 2 5 . 3 2 1 . 1 . 1 3 1 . . . . 2 2 . . 8 1 10 5 Max in Single Turn 11 | . . . 11 2 . 2 3 . 1 1 1 . 1 . 1 1 1 . . . . 1 1 . . 1 1 1 1 Garrison Access 11 | . . . . . . . . . . 2 . . . 1 3 . 1 . . . . . . . 2 . 1 1 . Garrison Relay 2 | . . . . . . . . . 2 . . . . . . . . . . . . . . . . . . . . Network Hub 1 | . . . . . . . . . . . . . . 1 . . . . . . . . . . . . . . . Machines Repaired . | . . . . . . . . . . . . . . . . . . . . . . . . . . . . . . Machines Dismantled . | . . . . . . . . . . . . . . . . . . . . . . . . . . . . . . Machines Sabotaged . | . . . . . . . . . . . . . . . . . . . . . . . . . . . . . . Overloaded Fab Kills 1 | . . . . . . . . . . . . . . . . . . . . . . 1 . . . . . . . Hacking | -11 -10 -10 -9 -9 -9 -8 -8 -7 -7 -6 -6 -6 -6 -6 -5 -5 -5 -5 -5 -5 -4 -4 -4 -4 -3 -3 -2 -2 -2 --------- Run | Yrd Mat Min Mat Min Exi Min Mat Fac Gar Fac Ext Cet Arc Hub Fac Gar Fac Upp Upp Zhi Pro Fac Arm Lab Res Tes Res Qua Frg Machines Accessed 122 | . . 2 3 . 2 . 14 4 2 10 14 . . 5 9 1 12 . . 4 . 7 4 . 10 4 7 7 1 Terminals 75 | . . 1 2 . . . 7 3 2 6 14 . . 4 4 1 7 . . . . 4 2 . 6 2 4 5 1 Fabricators 6 | . . . . . . . . . . . . . . . . . 3 . . . . 1 1 . . . 1 . . Repair Stations 6 | . . . . . . . 2 . . . . . . . . . . . . . . 2 . . 1 1 . . . Recycling Units 5 | . . . . . . . 2 . . 1 . . . . 1 . . . . . . . 1 . . . . . . Scanalyzers 9 | . . . 1 . . . 2 . . 1 . . . . 1 . 1 . . . . . . . 1 . 1 1 . Garrison Access 14 | . . . . . . . 1 1 . 2 . . . 1 3 . 1 . . . . . . . 2 1 1 1 . Total Hacks 363 | . . 5 6 . 2 . 44 6 5 32 31 . . 9 31 2 48 . . 17 . 32 8 . 35 10 21 17 2 Successful 209 | . . 3 3 . 2 . 31 5 3 21 10 . . 2 16 1 27 . . 17 . 17 4 . 22 6 13 6 . Failed 147 | . . 2 2 . . . 12 1 2 10 21 . . 7 14 1 21 . . . . 15 4 . 12 4 7 10 2 Catastrophic 25 | . . . 1 . . . . . . 1 3 . . 2 3 . 5 . . . . 4 1 . . 1 . 3 1 Database Lockouts 7 | . . . 1 . . . 1 . . 1 . . . . 1 . . . . . . . . . 1 . 1 1 . Manual 168 | . . 4 3 . 1 . 22 3 2 23 3 1 . 8 23 1 24 . . . . 17 3 . 17 3 2 8 . Terminals 230 | . . 4 3 . . . 21 5 5 24 31 . . 8 21 2 31 . . . . 20 4 . 23 5 10 11 2 Fabricators 19 | . . . . . . . . . . . . . . . . . 10 . . . . 2 1 . . . 6 . . Repair Stations 20 | . . . . . . . 5 . . . . . . . . . . . . . . 10 . . 3 2 . . . Recycling Units 10 | . . . . . . . 2 . . 3 . . . . 2 . . . . . . . 3 . . . . . . Scanalyzers 38 | . . . 3 . . . 13 . . 2 . . . . 3 . 5 . . . . . . . 5 . 3 4 . Garrison Access 26 | . . . . . . . 3 1 . 3 . . . 1 5 . 2 . . . . . . . 4 3 2 2 . Terminal Hacks 79 | . . 3 . . 2 . 5 1 3 5 10 . . 1 3 1 7 . . 17 . 6 2 . 5 2 5 1 . Record 6 | . . . . . 1 . . . . . . . . . . . . . . 5 . . . . . . . . . Part Schematic 5 | . . . . . . . . . . . . . . . . . 1 . . 4 . . . . . . . . . Robot Schematic 1 | . . . . . . . . . . . . . . . . . . . . . . . . . 1 . . . . Robot Analysis 9 | . . 2 . . . . . . . 1 . . . . . . 1 . . 4 . . . . . . . 1 . Prototype ID Bank 8 | . . . . . . . . . . . 1 . . . . . . . . 4 . 1 . . 1 . 1 . . Open Door 10 | . . 1 . . . . . . 1 . 7 . . . . . . . . . . . . . . . 1 . . Level Access Points 1 | . . . . . . . . . . . . . . 1 . . . . . . . . . . . . . . . Branch Access Points 5 | . . . . . . . . . . 1 . . . . 1 . 1 . . . . . . . 1 . 1 . . Emergency Access Points 2 | . . . . . . . . . 1 . . . . . . 1 . . . . . . . . . . . . . Terminal Index 7 | . . . . . . . . 1 . 1 . . . . 1 . 1 . . . . 1 . . . 1 1 . . Fabricator Index 1 | . . . . . . . . . . . . . . . . . . . . . . 1 . . . . . . . Recycling Unit Index 1 | . . . . . . . . . . . . . . . . . . . . . . 1 . . . . . . . Scanalyzer Index 2 | . . . . . . . . . . 1 . . . . . . . . . . . . . . . . 1 . . Unreport Threat 2 | . . . . . . . 2 . . . . . . . . . . . . . . . . . . . . . . Locate Traps 6 | . . . . . . . 2 . . . 2 . . . . . . . . . . 1 . . 1 . . . . Recall Extermination 3 | . . . . . . . . . . 1 . . . . . . 1 . . . . 1 . . . . . . . Recall Reinforcements 1 | . . . . . . . . . . . . . . . . . . . . . . . 1 . . . . . . Hauler Manifests 3 | . . . . . . . 1 . . . . . . . 1 . . . . . . . . . . 1 . . . Registered Components 2 | . . . . . . . . . . . . . . . . . 1 . . . . . . . 1 . . . . Registered Prototypes 1 | . . . . . . . . . . . . . . . . . 1 . . . . . . . . . . . . Zone Layout 1 | . . . . . . . . . . . . . . . . . . . . . . . 1 . . . . . . Garrison Registry 1 | . . . . . . . . . 1 . . . . . . . . . . . . . . . . . . . . Proto ID Catalog 1 | . . . . . 1 . . . . . . . . . . . . . . . . . . . . . . . . Fabricator Hacks 10 | . . . . . . . . . . . . . . . . . 5 . . . . . 1 . . . 4 . . Network Status 2 | . . . . . . . . . . . . . . . . . 1 . . . . . 1 . . . . . . Load Schematic 5 | . . . . . . . . . . . . . . . . . 3 . . . . . . . . . 2 . . Build 3 | . . . . . . . . . . . . . . . . . 1 . . . . . . . . . 2 . . Repair Station Hacks 14 | . . . . . . . 4 . . . . . . . . . . . . . . 6 . . 2 2 . . . Scan Component 7 | . . . . . . . 2 . . . . . . . . . . . . . . 3 . . 1 1 . . . Repair 7 | . . . . . . . 2 . . . . . . . . . . . . . . 3 . . 1 1 . . . Recycling Unit Hacks 2 | . . . . . . . . . . 1 . . . . . . . . . . . . 1 . . . . . . Retrieve Components 2 | . . . . . . . . . . 1 . . . . . . . . . . . . 1 . . . . . . Scanalyzer 29 | . . . 2 . . . 10 . . 2 . . . . 2 . 4 . . . . . . . 4 . 2 3 . Insert Component 6 | . . . 1 . . . 4 . . . . . . . . . . . . . . . . . 1 . . . . Analyze 7 | . . . . . . . 5 . . . . . . . . . . . . . . . . . 2 . . . . Retrieve Study 16 | . . . 1 . . . 1 . . 2 . . . . 2 . 4 . . . . . . . 1 . 2 3 . Garrison Access Hacks 21 | . . . . . . . . 1 . 3 . . . 1 5 . 2 . . . . . . . 4 1 2 2 . Unlock Access 2 | . . . . . . . . 1 . . . . . . 1 . . . . . . . . . . . . . . Seal Access 10 | . . . . . . . . . . 2 . . . 1 2 . 1 . . . . . . . 2 . 1 1 . Coupler Status 9 | . . . . . . . . . . 1 . . . . 2 . 1 . . . . . . . 2 1 1 1 . Unauthorized Hacks 54 | . . . 1 . . . 12 3 . 10 . . . . 6 . 9 . . . . 5 . . 7 1 . . . Terminals 46 | . . . 1 . . . 9 3 . 9 . . . . 6 . 7 . . . . 4 . . 7 . . . . Track 1 | . . . . . . . . . . 1 . . . . . . . . . . . . . . . . . . . Assimilate 1 | . . . . . . . 1 . . . . . . . . . . . . . . . . . . . . . . Botnet 19 | . . . . . . . 2 2 . 4 . . . . 3 . 2 . . . . 3 . . 3 . . . . Operators 3 | . . . 1 . . . 1 1 . . . . . . . . . . . . . . . . . . . . . Skim 22 | . . . . . . . 5 . . 4 . . . . 3 . 5 . . . . 1 . . 4 . . . . Fabricators 3 | . . . . . . . . . . . . . . . . . 2 . . . . 1 . . . . . . . Haulers 1 | . . . . . . . . . . . . . . . . . 1 . . . . . . . . . . . . Overload 1 | . . . . . . . . . . . . . . . . . . . . . . 1 . . . . . . . Recompile 1 | . . . . . . . . . . . . . . . . . 1 . . . . . . . . . . . . Repair Stations . | . . . . . . . . . . . . . . . . . . . . . . . . . . . . . . Recycling Units 3 | . . . . . . . 2 . . 1 . . . . . . . . . . . . . . . . . . . Mask 1 | . . . . . . . . . . 1 . . . . . . . . . . . . . . . . . . . Tunnel 2 | . . . . . . . 2 . . . . . . . . . . . . . . . . . . . . . . Scanalyzers . | . . . . . . . . . . . . . . . . . . . . . . . . . . . . . . Garrison Access 2 | . . . . . . . 1 . . . . . . . . . . . . . . . . . . 1 . . . Restock 1 | . . . . . . . . . . . . . . . . . . . . . . . . . . 1 . . . Reprogram 1 | . . . . . . . 1 . . . . . . . . . . . . . . . . . . . . . . Data Cores Recovered 1 | . . . . . . . 1 . . . . . . . . . . . . . . . . . . . . . . Used . | . . . . . . . . . . . . . . . . . . . . . . . . . . . . . . Hacking Detections 92 | . . 1 3 . . . 11 3 1 9 12 . . 4 7 1 9 . . . . 6 3 . 9 3 4 5 1 Full Trace Events 3 | . . . . . . . . . 1 . 1 . . . 1 . . . . . . . . . . . . . . Feedback Events . | . . . . . . . . . . . . . . . . . . . . . . . . . . . . . . Feedback Blocked . | . . . . . . . . . . . . . . . . . . . . . . . . . . . . . . Robot Schematics Acquired 54 | . . . . . . . . . . . . . . . . . . . . . . . . . 1 4 . 49 . Robots Built . | . . . . . . . . . . . . . . . . . . . . . . . . . . . . . . Authchips . | . . . . . . . . . . . . . . . . . . . . . . . . . . . . . . Time . | . . . . . . . . . . . . . . . . . . . . . . . . . . . . . . Total Robot Build Rating . | . . . . . . . . . . . . . . . . . . . . . . . . . . . . . . Part Schematics Acquired 18 | . . . . . . . 3 . . . . . . . . . 1 . . 4 . . . . 1 5 . 4 . Parts Built 5 | . . . . . . . . . . . . . . . . . 2 . . . . . . . . . 3 . . Authchips 3 | . . . . . . . . . . . . . . . . . 1 . . . . . . . . . 2 . . Time 180 | . . . . . . . . . . . . . . . . . 64 . . . . . . . . . 116 . . Total Part Build Rating 41 | . . . . . . . . . . . . . . . . . 16 . . . . . . . . . 25 . . Part Studies Acquired 14 | . . . 1 . . . 1 . . 2 . . . . 1 . 3 . . . . . . . 1 . 2 3 . Parts Repaired 7 | . . . . . . . 2 . . . . . . . . . . . . . . 3 . . 1 1 . . . Time 578 | . . . . . . . 272 . . . . . . . . . . . . . . 162 . . 36 108 . . . Parts Recycled . | . . . . . . . . . . . . . . . . . . . . . . . . . . . . . . Recycled Matter . | . . . . . . . . . . . . . . . . . . . . . . . . . . . . . . Retrieved Matter . | . . . . . . . . . . . . . . . . . . . . . . . . . . . . . . Retrieved Components 9 | . . . . . . . . . . 9 . . . . . . . . . . . . . . . . . . . Parts Scanalyzed 4 | . . . . . . . 3 . . . . . . . . . . . . . . . . . 1 . . . . Part Schematics Acquired 4 | . . . . . . . 3 . . . . . . . . . . . . . . . . . 1 . . . . Parts Damaged 2 | . . . . . . . 2 . . . . . . . . . . . . . . . . . . . . . . Bothacking | -11 -10 -10 -9 -9 -9 -8 -8 -7 -7 -6 -6 -6 -6 -6 -5 -5 -5 -5 -5 -5 -4 -4 -4 -4 -3 -3 -2 -2 -2 ------------ Run | Yrd Mat Min Mat Min Exi Min Mat Fac Gar Fac Ext Cet Arc Hub Fac Gar Fac Upp Upp Zhi Pro Fac Arm Lab Res Tes Res Qua Frg Used RIF Installer 3 | . . . . . . . . . 2 . . . . . . 1 . . . . . . . . . . . . . Signal Jammer 1 | . . . . . . . . . 1 . . . . . . . . . . . . . . . . . . . . Robot Detection 1 | . . . . . . . . . . . . . . . . 1 . . . . . . . . . . . . . Robots Hacked 23 | . . . . . . . . . . 2 1 4 . 1 1 1 . . . . . 5 . . . 5 . 3 . Non-combat 10 | . . . . . . . . . . 1 1 . . 1 1 1 . . . . . 2 . . . 3 . . . Combat 13 | . . . . . . . . . . 1 . 4 . . . . . . . . . 3 . . . 2 . 3 . Robot Hacks Applied 29 | . . . . . . . . . . 4 1 4 . 1 1 1 . . . . . 5 . . . 9 . 3 . parse_system 4 | . . . . . . . . . . . . 4 . . . . . . . . . . . . . . . . . drop_inventory 1 | . . . . . . . . . . . . . . . . . . . . . . 1 . . . . . . . ignore_parts 3 | . . . . . . . . . . . . . . . . . . . . . . . . . . 3 . . . purge_threat 1 | . . . . . . . . . . 1 . . . . . . . . . . . . . . . . . . . locate_prototypes 1 | . . . . . . . . . . . . . . . . . . . . . . . . . . . . 1 . find_garrison 1 | . . . . . . . . . . 1 . . . . . . . . . . . . . . . . . . . reboot_system 1 | . . . . . . . . . . . . . . . . . . . . . . 1 . . . . . . . overwrite_iff 1 | . . . . . . . . . . . . . . . . . . . . . . 1 . . . . . . . formatsys_low 13 | . . . . . . . . . . 1 1 . . 1 . 1 . . . . . 1 . . . 6 . 2 . formatsys_high 3 | . . . . . . . . . . 1 . . . . 1 . . . . . . 1 . . . . . . . Relay Couplers Released 22 | . . . . . . . . . 7 1 . . . . 3 . 2 . . . . . . . 3 4 . 2 . Machine Destruction 18 | . . . . . . . . . 7 1 . . . . 3 . 2 . . . . . . . 3 . . 2 . Programmers 4 | . . . . . . . . . . . . . . . . . . . . . . . . . . 4 . . . Attached 10 | . . . . . . . . . . 2 1 . . 1 1 . . . . . . 2 . . . 2 . 1 . Fabnet Peak Effective % . | . . . . . . . . . . . . . . . . . . . . . . . . . . . . . . Robots Rewired 12 | . . . . . . . . . . . 8 . . . . 1 . . 3 . . . . . . . . . . Allies Hacked 4 | . . . . . . . . . . . . . . . . . . . . . . . . . . 4 . . . Hacks Repelled . | . . . . . . . . . . . . . . . . . . . . . . . . . . . . . . Allies | -11 -10 -10 -9 -9 -9 -8 -8 -7 -7 -6 -6 -6 -6 -6 -5 -5 -5 -5 -5 -5 -4 -4 -4 -4 -3 -3 -2 -2 -2 -------- Run | Yrd Mat Min Mat Min Exi Min Mat Fac Gar Fac Ext Cet Arc Hub Fac Gar Fac Upp Upp Zhi Pro Fac Arm Lab Res Tes Res Qua Frg Total Allies 50 | . . 2 . 3 . . 1 . 1 2 20 5 . 1 1 4 . . 3 . . 3 . . . 2 . 2 . Largest Group 13 | . . 2 2 3 3 . 1 . 1 1 13 10 7 4 1 3 . . 3 3 3 1 . . . 2 . 2 . Highest-Rated Group 751 | . . 45 45 40 40 . 16 . 31 32 500 751 670 297 112 165 . . 87 87 87 50 . . . 98 . 124 . Highest-Rated Ally 159 | . . 31 31 16 16 . 16 . 31 32 159 159 159 96 112 80 . . 29 29 29 50 . . . 49 . 62 . Total Orders 21 | . . . . . 1 1 . . . . . . . . 1 1 . . . . . 4 . . . 10 . 3 . STAY 13 | . . . . . 1 . . . . . . . . . 1 . . . . . . 2 . . . 6 . 3 . FOLLOW 5 | . . . . . . . . . . . . . . . . . . . . . . 1 . . . 4 . . . AID 2 | . . . . . . . . . . . . . . . . 1 . . . . . 1 . . . . . . . RETURN 1 | . . . . . . 1 . . . . . . . . . . . . . . . . . . . . . . . Ally Attacks 342 | . . . 23 . 9 . 13 . 7 5 42 92 . 40 3 17 . . . . 32 7 . . . 44 . 8 . Total Damage 7043 | . . . 337 . 34 . 176 . 145 172 833 2463 . 1628 196 446 . . . . 342 271 . . . . . . . Kills 42 | . . . 8 . . . 5 . 3 . 3 10 . 8 . 3 . . . . 2 . . . . . . . . Allies Corrupted 1 | . . . . . . . . . . . . . . 1 . . . . . . . . . . . . . . . Allies Melted 1 | . . . . . . . . . . . . . . . 1 . . . . . . . . . . . . . . Intel | -11 -10 -10 -9 -9 -9 -8 -8 -7 -7 -6 -6 -6 -6 -6 -5 -5 -5 -5 -5 -5 -4 -4 -4 -4 -3 -3 -2 -2 -2 ------- Run | Yrd Mat Min Mat Min Exi Min Mat Fac Gar Fac Ext Cet Arc Hub Fac Gar Fac Upp Upp Zhi Pro Fac Arm Lab Res Tes Res Qua Frg Active Infowar (turns) 19277 | 21 196 971 1200 883 541 . 1521 183 588 1158 568 . . . 745 38 1607 239 505 194 429 1580 1063 70 889 1375 705 1211 797 Sensors 8605 | . . . . . . . . . . 345 24 . . . 386 . 1437 239 502 194 429 1198 924 2 686 556 525 824 334 Terrain 1488 | . . . . . . . . . . . . . . . . . . . . . . . . . . . 702 786 . Seismic 8040 | 21 196 971 1200 883 541 . 1521 183 26 758 544 . . . 242 . 256 . . . . . . . 20 . . . 678 Jamming 6370 | . . . . . . . . 12 562 57 . . . . 132 38 . . 3 . . 1580 1063 70 889 1193 527 244 . ECM 485 | . . . . . . . . . . . . . . . . . . . . . . . . . . . . 2 483 ID Mask 102 | . . . . . . . . . . . . . . . . . . . . . . . . . . . . . 102 Robot Analysis Total 102 | . . 2 . . . . . . . 1 . . . . . . 1 . . 4 . . . . . . . 94 . Derelict Logs Recovered 5 | . . 1 . 2 . . . . . . . . . . . . . . 1 . 1 . . . . . . . . Drone Launches 16 | . . . . . . 16 . . . . . . . . . . . . . . . . . . . . . . . Drone Recoveries 1 | . . . . . . 1 . . . . . . . . . . . . . . . . . . . . . . . Exploration | -11 -10 -10 -9 -9 -9 -8 -8 -7 -7 -6 -6 -6 -6 -6 -5 -5 -5 -5 -5 -5 -4 -4 -4 -4 -3 -3 -2 -2 -2 ------------- Run | Yrd Mat Min Mat Min Exi Min Mat Fac Gar Fac Ext Cet Arc Hub Fac Gar Fac Upp Upp Zhi Pro Fac Arm Lab Res Tes Res Qua Frg Turns Passed 28448 | 103 196 971 1477 886 1074 870 4744 183 609 1264 1128 436 104 258 946 395 1721 241 567 203 430 1580 1063 70 889 1717 705 2790 828 Spaces Moved 15884 | 49 113 566 750 534 411 642 1881 126 280 862 706 151 46 188 647 241 1156 213 364 155 344 650 654 15 624 988 374 1795 359 Core 458 | 3 . . . . . 411 . . . . . . . . . . . . . . . . . . . . . . 44 Treads 2703 | 46 113 566 750 534 236 20 438 . . . . . . . . . . . . . . . . . . . . . . Legs 10584 | . . . . . . 42 . . 71 862 706 151 46 188 647 241 1156 213 364 155 344 650 654 15 624 988 374 1795 298 Wheels 2139 | . . . . . 175 169 1443 126 209 . . . . . . . . . . . . . . . . . . . 17 Hover . | . . . . . . . . . . . . . . . . . . . . . . . . . . . . . . Flight . | . . . . . . . . . . . . . . . . . . . . . . . . . . . . . . Fastest Speed 50 | 50 160 160 160 160 145 50 145 131 131 105 120 120 120 120 105 105 105 111 111 111 111 102 102 113 110 102 103 112 50 Average Speed 130 | 153 160 160 160 160 157 86 187 138 158 117 120 120 120 120 115 106 113 111 116 111 111 128 112 113 113 107 108 116 126 Slowest Speed 1600 | 160 160 160 240 160 240 400 480 145 610 120 120 120 120 120 120 175 175 181 181 111 111 181 113 113 118 173 114 183 1600 Overloaded Moves . | . . . . . . . . . . . . . . . . . . . . . . . . . . . . . . Propulsion Burnouts . | . . . . . . . . . . . . . . . . . . . . . . . . . . . . . . Robots Hopped . | . . . . . . . . . . . . . . . . . . . . . . . . . . . . . . Potential Cave-ins 25 | . . . . . . . . . . . 8 . . . . . . . . . . . . . . . . 4 13 Cave-ins Triggered 2 | . . . . . . . . . . . . . . . . . . . . . . . . . . . . . 2 Teleports 1 | . . . . . . . . . . . . . . . . . . . . . . . 1 . . . . . . Exploration Rate (%) 44 | 4 26 96 60 98 69 60 88 4 53 26 65 57 49 37 23 40 26 44 46 60 64 19 27 6 25 48 13 90 16 Regions Visited 29 Branch Regions 17 Pre-discovered Areas 9 | . . . . 2 1 . 2 . . . . . . . . . 1 . . 3 . . . . . . . . . Known Exits Taken 17 | . . . . . . . 1 1 . 1 . . . 1 1 . 1 1 1 1 1 1 1 1 1 1 1 1 . Unknown Exits Taken 10 | 1 1 1 1 1 1 1 . . . . 1 1 1 . . . . . . . . . . . . . . . . Scrap Searched 9 | . . 1 . 1 . . . . . . . . . . . . . . 5 . 2 . . . . . . . . Spaces Dug 329 | . . 11 5 . . 22 17 1 5 53 22 . 6 5 12 4 35 . 12 . 13 22 20 . 16 4 12 29 3 Terrain Destroyed 675 | . . 11 50 22 . 42 102 1 36 53 56 2 6 7 12 21 35 . 12 . 14 67 20 . 18 4 12 60 12 Melee 188 | . . . . . . . 4 1 . 34 1 . 3 5 11 . 32 . 12 . 10 20 16 . 15 4 9 8 3 Projectile 121 | . . 2 . . . 21 25 . 8 1 10 2 3 2 1 . 3 . . . 4 2 4 . 3 . 3 18 9 AOE 359 | . . 9 50 22 . 20 68 . 27 18 45 . . . . 21 . . . . . 45 . . . . . 34 . Terrain Rammed . | . . . . . . . . . . . . . . . . . . . . . . . . . . . . . . Walls Destroyed . | . . . . . . . . . . . . . . . . . . . . . . . . . . . . . . Machines Disabled . | . . . . . . . . . . . . . . . . . . . . . . . . . . . . . . Actions | -11 -10 -10 -9 -9 -9 -8 -8 -7 -7 -6 -6 -6 -6 -6 -5 -5 -5 -5 -5 -5 -4 -4 -4 -4 -3 -3 -2 -2 -2 --------- Run | Yrd Mat Min Mat Min Exi Min Mat Fac Gar Fac Ext Cet Arc Hub Fac Gar Fac Upp Upp Zhi Pro Fac Arm Lab Res Tes Res Qua Frg Total 22045 | 66 124 597 932 557 794 873 2795 133 381 1066 941 397 80 211 790 335 1471 216 462 182 376 1315 946 67 784 1554 620 2332 648 Wait 3432 | . . 6 49 8 314 76 612 . 16 84 167 214 19 10 57 44 166 2 26 4 16 514 199 52 71 284 134 152 136 Move 15855 | 49 112 565 749 533 410 641 1880 126 279 861 705 150 45 187 647 240 1155 212 363 154 343 649 653 14 623 987 373 1794 356 Hop . | . . . . . . . . . . . . . . . . . . . . . . . . . . . . . . Pick Up 201 | 5 7 2 21 1 10 21 25 . 8 13 2 5 . . 8 . 12 . . 2 . 8 5 . 9 8 5 18 6 Fast Attach 166 | 6 . . 8 2 2 14 13 1 4 4 . 2 . . 1 . 11 . 3 6 . 12 4 . 9 40 2 17 5 Attach 98 | 1 . . 5 1 5 13 6 2 . 4 1 1 . 1 6 1 4 . . 2 . 5 3 . 4 3 4 13 13 Detach 45 | . . . 1 1 2 13 3 1 1 2 . 1 . 1 2 . . . . 2 . 2 . . 4 1 . 3 5 Swap 372 | . 1 4 21 2 7 9 42 1 15 25 16 2 3 2 16 8 18 2 14 2 2 20 11 1 11 27 25 46 19 Drop 229 | . 1 . 24 3 12 10 21 1 11 20 2 7 . . 3 . 18 . 3 6 . 6 5 . 13 25 12 20 6 Fire 690 | 4 3 18 51 5 1 76 175 . 35 6 27 15 4 4 2 32 14 . 15 . 4 16 4 . 6 19 4 79 71 Melee 910 | . . . . . 31 . 14 1 4 45 17 . 9 6 48 10 73 . 27 4 11 82 62 . 34 156 61 190 25 Ram . | . . . . . . . . . . . . . . . . . . . . . . . . . . . . . . Kick . | . . . . . . . . . . . . . . . . . . . . . . . . . . . . . . Crush 11 | 1 . 2 3 1 . . 4 . . . . . . . . . . . . . . . . . . . . . . Escape Stasis 18 | . . . . . . . . . 8 . 4 . . . . . . . . . . . . . . . . . 6 Rewire 18 | . . . . . . . . . . 2 . . . . . . . . 11 . . 1 . . . 4 . . . Trap . | . . . . . . . . . . . . . . . . . . . . . . . . . . . . . . Miscellaneous . | . . . . . . . . . . . . . . . . . . . . . . . . . . . . . . Route ------- -11/Scrapyard -10/Materials -10/Mines (discovered 3 exits: *Mat x2 / [*Sub]) -9/Materials (discovered 2 exits: *Mat / [*Min]) -9/Mines (discovered 3 exits: *Mat x2 / *Exi) -9/Exiles -8/Mines -8/Materials (discovered 3 exits: *Fac x3) -7/Factory (discovered 4 exits: Fac x2 / Low / Gar) -7/Garrison (discovered 3 exits: *Fac x3) -6/Factory (discovered 5 exits: *Fac / *Low x2 / *Ext x2) -6/Extension (discovered 2 exits: *Fac / *Cet) -6/Cetus (discovered 2 exits: *Fac / [*Arc]) -6/Archives -6/Hub_04(d) (discovered 4 exits: *Fac x4) -5/Factory (discovered 3 exits: *Upp x2 / Gar) -5/Garrison -5/Factory (discovered 6 exits: Fac x4 / *Upp x2) -5/Upper Caves -5/Upper Caves -5/Zhirov -4/Proximity Caves -4/Factory (discovered 2 exits: Res / *Arm) -4/Armory -4/Lab -3/Research (discovered 3 exits: *Res / *Tes x2) -3/Testing -2/Research (discovered 2 exits: *Qua x2) -2/Quarantine (discovered 3 exits: [*Acc] / [*Sec] / *Frg) -2/Protoforge History --------- Turn | Location | Event 12 | -11/Scrapyard | Discovered new exit (range 15) 104 | -11/Scrapyard | Entered Materials 277 | -10/Materials | Discovered new exit (range 6) 300 | -10/Materials | Entered Mines 325 | -10/Mines | Build established: Mutant 417 | -10/Mines | Met a Derelict bent on vengeance 562 | -10/Mines | Learned Materials terminal intel 592 | -10/Mines | Discovered new exit (range 10) 684 | -10/Mines | Discovered new exit (range 6) 848 | -10/Mines | Discovered new exit (range 8) 944 | -10/Mines | Found a damaged Exp. Sensor Array with a note attached 947 | -10/Mines | Found Prototype Device 1000 | -10/Mines | Found the Drone Emporium 1007 | -10/Mines | Found Prototype Device 1271 | -10/Mines | Entered Materials 1271 | -9/Materials | Accompanied by 2 allies 1271 | -9/Materials | Evolved 2 slots: Propulsion x1, Utility x1 1272 | -9/Materials | Loaded intel: 12 terminal locations 1276 | -9/Materials | Led the pair of lost Derelicts to an unsafe place 1651 | -9/Materials | Build established: Scavenger-Mutant 1658 | -9/Materials | Central database locked down 1658 | -9/Materials | Identified Exp. Sensor Array 1666 | -9/Materials | Discovered new exit (range 15) 2712 | -9/Materials | Discovered new exit (range 12) 2748 | -9/Materials | Entered Mines 2860 | -9/Mines | Assisted by bots powering up and referring to "LRC-V3" 3004 | -9/Mines | Discovered new exit (range 3) 3093 | -9/Mines | Identified Decoy Drone Bay 3368 | -9/Mines | Discovered new exit (range 12) 3475 | -9/Mines | Learned location of Storage (-7) 3619 | -9/Mines | Deemed a non-threat by the Exiles lab entrance 3619 | -9/Mines | Discovered new exit (range 5) 3634 | -9/Mines | Entered Exiles 3634 | -9/Exiles | Accompanied by 3 allies 3671 | -9/Exiles | Met 8R-AWN 3700 | -9/Exiles | Met EX-HEX 3759 | -9/Exiles | Met EX-DEC 3786 | -9/Exiles | Learned location of Zion (-6) 3841 | -9/Exiles | Discovered new exit (range 12) 3962 | -9/Exiles | Met EX-BIN 3979 | -9/Exiles | Aligned with FarCom system 3981 | -9/Exiles | Given EX-Vault access code 4015 | -9/Exiles | Opened EX-Vault 4025 | -9/Exiles | Found XL Autogun Array 4034 | -9/Exiles | Found Gui. Plasma Cannon 4038 | -9/Exiles | Found Skeleton Box 4069 | -9/Exiles | Warned to stay clear of 0b10 Research branches 4077 | -9/Exiles | Exiles lab attacked by MAIN.C 4242 | -9/Exiles | Attacked by the Exiles 4329 | -9/Exiles | Found Prototype Ballistic Gun 4332 | -9/Exiles | Found Prototype Ballistic Gun 4344 | -9/Exiles | Lost 4 parts (3n1u) 4708 | -9/Exiles | Stole two prototypes: Gui. Plasma Cannon, XL Autogun Array 4708 | -9/Exiles | Entered Mines 4737 | -8/Mines | Identified 8R-AWN's Boregun (x2) 4772 | -8/Mines | 1C-UTU came to Exiles' defense 4785 | -8/Mines | Released all parts (9) 4796 | -8/Mines | Discovered new exit (range 13) 4843 | -8/Mines | Lost 8 allies 4961 | -8/Mines | Lost 6 allies 5095 | -8/Mines | Build established: Mutant 5223 | -8/Mines | Destroyed 1C-UTU 5226 | -8/Mines | Found Prototype Slashing Weapon 5226 | -8/Mines | Identified 1C-UTU's Sword "Lootmaker" 5228 | -8/Mines | Found Prototype Processor 5228 | -8/Mines | Identified Exp. Melee Analysis Suite 5231 | -8/Mines | Found Prototype Protection 5231 | -8/Mines | Identified 1C-UTU's Buckler 5234 | -8/Mines | Found Prototype Slashing Weapon 5234 | -8/Mines | Identified 1C-UTU's Sword "Choppy" 5240 | -8/Mines | Found Prototype Device 5240 | -8/Mines | Identified Femtoactuators 5578 | -8/Mines | Entered Materials 5578 | -8/Materials | Evolved 2 slots: Propulsion x1, Utility x1 5740 | -8/Materials | Build established: Scavenger-Mutant 6163 | -8/Materials | Discovered new exit (range 16) 6988 | -8/Materials | Central database locked down 7626 | -8/Materials | Discovered new exit (range 13) 8120 | -8/Materials | Repaired Broken Exp. Sensor Array 8517 | -8/Materials | Garrison activated, responded to threat 8541 | -8/Materials | Repaired Broken Exp. Myomer Leg? 8941 | -8/Materials | Identified exit to Factory 8998 | -8/Materials | Learned Factory stockpile data 9080 | -8/Materials | Learned Factory emergency access door positions 9124 | -8/Materials | Learned location of 2 exits from Factory 9132 | -8/Materials | Learned Storage trap positions 9149 | -8/Materials | Learned Storage stockpile data 9174 | -8/Materials | Learned Factory emergency access door positions 9209 | -8/Materials | Learned Factory recycling unit intel 9568 | -8/Materials | Garrison activated, responded to threat 9862 | -8/Materials | Sterilization system engaged 9862 | -8/Materials | Non-combat units ordered to evacuate 9962 | -8/Materials | Combat units ordered to evacuate 10162 | -8/Materials | Ambient heat levels rising (+10) 10312 | -8/Materials | Ambient heat levels rising (+10) 10322 | -8/Materials | Entered Factory 10322 | -7/Factory | Evolved 2 slots: Utility x2 10323 | -7/Factory | Identified exit to Lower Caves 10324 | -7/Factory | Identified exit to Factory 10327 | -7/Factory | Loaded intel: 6 recycling unit locations 10505 | -7/Factory | Identified exit to Garrison 10505 | -7/Factory | Entered Garrison 10525 | -7/Garrison | Discovered exit to Factory (range 44) 10525 | -7/Garrison | Discovered exit to Factory (range 55) 10525 | -7/Garrison | Discovered exit to Factory (range 29) 10563 | -7/Garrison | Triggered checkpoint 10613 | -7/Garrison | Installed Relay Interface Framework 10634 | -7/Garrison | Garrison Relay disabled 10736 | -7/Garrison | Rescued a captive Derelict 10755 | -7/Garrison | Garrison Relay disabled 10822 | -7/Garrison | Triggered checkpoint 10825 | -7/Garrison | Triggered checkpoint 10847 | -7/Garrison | Triggered checkpoint 10893 | -7/Garrison | Destroyed 8 combat bots 11081 | -7/Garrison | Expanded RIF knowledge: Signal Jamming 11114 | -7/Garrison | Entered Factory 11114 | -6/Factory | Evolved 2 slots: Propulsion x1, Utility x1 11202 | -6/Factory | Identified exit to Lower Caves 11202 | -6/Factory | Identified exit to Extension 11636 | -6/Factory | Central database locked down 11977 | -6/Factory | Spotted B-75 Beast 12121 | -6/Factory | Discovered new exit (range 15) 12144 | -6/Factory | Build established: Bothacker-Mutant 12378 | -6/Factory | Entered Extension 12633 | -6/Extension | Rescued a captive Derelict 12738 | -6/Extension | Rescued a captive Derelict 12759 | -6/Extension | Rescued a captive Derelict 12759 | -6/Extension | Rescued a captive Derelict 13023 | -6/Extension | Rescued a captive Derelict 13023 | -6/Extension | Rescued a captive Derelict 13129 | -6/Extension | Lost 4 allies 13215 | -6/Extension | Lost 3 allies 13303 | -6/Extension | Rescued a captive Derelict 13304 | -6/Extension | Rescued a captive Derelict 13338 | -6/Extension | Rescued a captive Derelict 13382 | -6/Extension | Rescued A7 13418 | -6/Extension | Rescued a captive Derelict 13419 | -6/Extension | Rescued a captive Derelict 13448 | -6/Extension | Discovered new exit (range 10) 13451 | -6/Extension | Discovered new exit (range 6) 13486 | -6/Extension | Build established: Scavenger-Mutant 13506 | -6/Extension | Entered Cetus 13506 | -6/Cetus | Accompanied by 8 allies (A7) 13511 | -6/Cetus | Acquired a Cetus Manufacturing Module code from A7 13543 | -6/Cetus | Spotted Cetus Guard 13547 | -6/Cetus | Allies destroyed Cetus Guard 13549 | -6/Cetus | Spotted Cetus Guard 13549 | -6/Cetus | Spotted Cetus Guard 13551 | -6/Cetus | Spotted Cetus Guard 13562 | -6/Cetus | Allies destroyed Cetus Guard 13572 | -6/Cetus | Allies destroyed Cetus Guard 13579 | -6/Cetus | Allies destroyed Cetus Guard 13600 | -6/Cetus | Lost 3 allies 13635 | -6/Cetus | Started Cetus Manufacturing Module 13649 | -6/Cetus | Discovered new exit (range 15) 13660 | -6/Cetus | Manufactured an Enhanced Grunt 13685 | -6/Cetus | Manufactured an Enhanced Grunt 13710 | -6/Cetus | Manufactured an Enhanced Grunt 13735 | -6/Cetus | Manufactured an Enhanced Grunt 13760 | -6/Cetus | Manufactured an Enhanced Grunt 13831 | -6/Cetus | Spotted Cetus Guard 13837 | -6/Cetus | Allies destroyed Cetus Guard 13838 | -6/Cetus | Spotted Cetus Guard 13850 | -6/Cetus | Allies destroyed Cetus Guard 13855 | -6/Cetus | Discovered new exit (range 15) 13861 | -6/Cetus | Met Revision 17 13942 | -6/Cetus | Entered Archives 13942 | -6/Archives | Accompanied by 7 allies (A7) 14003 | -6/Archives | Build established: Commander-Mutant 14019 | -6/Archives | Met Zhirov 14024 | -6/Archives | Discovered new exit (range 13) 14025 | -6/Archives | Reinforcements dispatched to Archives 14046 | -6/Archives | Entered Hub_04(d) 14046 | -6/Hub_04(d) | Accompanied by 3 allies 14088 | -6/Hub_04(d) | Identified exit to Factory 14292 | -6/Hub_04(d) | Network Hub disabled 14292 | -6/Hub_04(d) | Spotted Lightning 14292 | -6/Hub_04(d) | Spotted Lightning 14292 | -6/Hub_04(d) | Spotted Lightning 14304 | -6/Hub_04(d) | Entered Factory 14304 | -5/Factory | Accompanied by 1 ally 14304 | -5/Factory | Evolved 2 slots: Power x1, Utility x1 14325 | -5/Factory | Lost 3 allies 14350 | -5/Factory | Build established: Scavenger-Mutant 14627 | -5/Factory | Identified exit to Upper Caves 14912 | -5/Factory | Build established: Scavenger-Gladiator 14993 | -5/Factory | Central database locked down 15163 | -5/Factory | Cargo convoy interrupted 15169 | -5/Factory | Allied Derelicts emerged from ambush trap array 15182 | -5/Factory | Garrison activated, responded to threat 15219 | -5/Factory | Lost 4 allies 15250 | -5/Factory | Identified exit to Garrison 15250 | -5/Factory | Entered Garrison 15286 | -5/Garrison | Triggered checkpoint 15344 | -5/Garrison | Expanded RIF knowledge: Robot Detection 15491 | -5/Garrison | Found embedded Infiltrators 15543 | -5/Garrison | Triggered checkpoint 15544 | -5/Garrison | Triggered checkpoint 15565 | -5/Garrison | Triggered checkpoint 15602 | -5/Garrison | Lost 3 allies 15612 | -5/Garrison | Triggered checkpoint 15634 | -5/Garrison | Discovered new exit (range 12) 15636 | -5/Garrison | Lost 4 parts (2p2u) 15645 | -5/Garrison | Entered Factory 16086 | -5/Factory | System corruption reached 10% 16624 | -5/Factory | Build established: Bothacker-Gladiator 16834 | -5/Factory | Identified exit to Factory 16915 | -5/Factory | Learned Research trap positions 17045 | -5/Factory | Learned Research trap positions 17131 | -5/Factory | Fabricated Imp. Thunder Leg (x2) 17135 | -5/Factory | Loaded intel: 4 garrison access locations 17184 | -5/Factory | Learned location of Armory (-4) 17366 | -5/Factory | Entered Upper Caves 17588 | -5/Upper Caves | Discovered new exit (range 15) 17602 | -5/Upper Caves | Identified exit to Upper Caves 17607 | -5/Upper Caves | Entered another Upper Caves area 17765 | -5/Upper Caves | Attracted the attention of an 0b10 checkpoint 17810 | -5/Upper Caves | Learned location of 1 exit from Factory 18155 | -5/Upper Caves | Discovered new exit (range 11) 18164 | -5/Upper Caves | Identified exit to Zhirov 18174 | -5/Upper Caves | Entered Zhirov 18174 | -5/Zhirov | Accompanied by 3 allies 18174 | -5/Zhirov | Discovered new exit (range 3) 18216 | -5/Zhirov | Learned location of Quarantine (-2) 18216 | -5/Zhirov | Learned location of Testing (-3) 18216 | -5/Zhirov | Learned location of Command (-1) 18244 | -5/Zhirov | Found Alien Artifact 18244 | -5/Zhirov | Identified Integrated Dissipator 18244 | -5/Zhirov | Installed Integrated Dissipator, increased core heat dissipation (+20) 18324 | -5/Zhirov | Found Alien Artifact 18370 | -5/Zhirov | Identified exit to Proximity Caves 18377 | -5/Zhirov | Entered Proximity Caves 18377 | -4/Proximity Caves | Accompanied by 3 allies 18610 | -4/Proximity Caves | Learned Research terminal intel 18645 | -4/Proximity Caves | Build established: Bothacker-Mutant 18701 | -4/Proximity Caves | Spotter reported a threat 18801 | -4/Proximity Caves | Discovered exit to Factory (range 7) 18807 | -4/Proximity Caves | Entered Factory 18807 | -4/Factory | Evolved 2 slots: Utility x2 18808 | -4/Factory | Identified exit to Armory 18809 | -4/Factory | Identified exit to Research 19010 | -4/Factory | Repaired Centrium Medium Armor Plating 19588 | -4/Factory | Repaired Centrium Medium Armor Plating 19645 | -4/Factory | Repaired Exp. Myomer Leg 19808 | -4/Factory | Lost 4 parts (3n1u) 19880 | -4/Factory | Cargo convoy interrupted 19960 | -4/Factory | Found Exp. Hacking Suite 19964 | -4/Factory | Found Adv. EM Shield 20035 | -4/Factory | Found Prototype Processor 20035 | -4/Factory | Identified Exp. Signal Interpreter 20387 | -4/Factory | Entered Armory 20472 | -4/Armory | Build established: Scavenger-Mutant 21433 | -4/Armory | Identified Transdimensional Reconstructor 21433 | -4/Armory | Warped through subspace to slip node 21433 | -4/Armory | Discovered new exit (range 1) 21433 | -4/Armory | Identified exit to Lab 21450 | -4/Armory | Entered Lab 21450 | -4/Lab | Discovered exit to Research (range 9) 21518 | -4/Lab | Unable to decrypt terminal 21520 | -4/Lab | Entered Research 21520 | -3/Research | Evolved 2 slots: Propulsion x1, Utility x1 21521 | -3/Research | Loaded intel: 100 trap records 21522 | -3/Research | Loaded intel: 20 terminal locations 21563 | -3/Research | Identified exit to Testing 21592 | -3/Research | Discovered new exit (range 13) 21606 | -3/Research | Identified exit to Research 21720 | -3/Research | Revision forces began assault on 0b10 21821 | -3/Research | Met up with Revision 17++ 22094 | -3/Research | Central database locked down 22128 | -3/Research | Found Prototype Processor 22128 | -3/Research | Identified Exp. Target Analyzer 22220 | -3/Research | Research terminal network offline 22347 | -3/Research | Repaired Exp. Sensor Array 22409 | -3/Research | Entered Testing 22434 | -3/Testing | Found Prototype Device 22434 | -3/Testing | Identified Exp. Hardlight Generator 22467 | -3/Testing | Found Prototype Energy Cannon 22467 | -3/Testing | Identified Cld. Nova Cannon 22564 | -3/Testing | Found Prototype Energy Gun 22564 | -3/Testing | Identified Tachyon Dispersion Ray 22588 | -3/Testing | Unchained authorized (CL-0N3) 22835 | -3/Testing | P-80 Master assimilated allied Analyst 8a 22919 | -3/Testing | A-15 Conveyor reconstituted as Combat Programmer 22920 | -3/Testing | Spotted Combat Programmer 22958 | -3/Testing | Combat Programmer assimilated allied Analyst 8b 22970 | -3/Testing | Combat Programmer assimilated allied Analyst 8c 22975 | -3/Testing | System corruption reached 10% 22978 | -3/Testing | Combat Programmer assimilated allied Analyst 8d 22978 | -3/Testing | Destroyed Combat Programmer 22978 | -3/Testing | Combat Programmer reconstituted as CL-0N3 23160 | -3/Testing | K-01 Serf reconstituted as Cetus Guard 23160 | -3/Testing | Spotted Cetus Guard 23193 | -3/Testing | Destroyed Cetus Guard 23193 | -3/Testing | Cetus Guard reconstituted as CL-0N3 23481 | -3/Testing | K-01 Serf reconstituted as Executioner 23481 | -3/Testing | Spotted Executioner 23528 | -3/Testing | Destroyed Executioner 23528 | -3/Testing | Executioner reconstituted as CL-0N3 23557 | -3/Testing | Garrison activated, responded to threat 23737 | -3/Testing | Repaired Enh. Biometal Leg 23806 | -3/Testing | Found Adv. Powered Armor 23883 | -3/Testing | Found Prototype Protection 23883 | -3/Testing | Identified SHELL Armor 23895 | -3/Testing | R-10 Processor reconstituted as Combat Programmer 23895 | -3/Testing | Spotted Combat Programmer 23911 | -3/Testing | Destroyed Combat Programmer 23911 | -3/Testing | Combat Programmer reconstituted as CL-0N3 24119 | -3/Testing | Discovered exit to Research (range 8) 24126 | -3/Testing | Entered Research 24126 | -2/Research | Evolved 2 slots: Power x1, Utility x1 24127 | -2/Research | Loaded intel: 83 trap records 24208 | -2/Research | Fabricated Imp. Thunder Leg (x2) 24289 | -2/Research | Fabricated Femtoactuators (x1) 24312 | -2/Research | Unchained authorized (CL-0N3) 24334 | -2/Research | Identified exit to Quarantine 24417 | -2/Research | Build established: Scavenger-Assassin 24565 | -2/Research | Central database locked down 24616 | -2/Research | U-05 Engineer reconstituted as V2 24616 | -2/Research | Spotted V2 24643 | -2/Research | Destroyed V2 24643 | -2/Research | V2 reconstituted as CL-0N3 24831 | -2/Research | Entered Quarantine 25016 | -2/Quarantine | Unchained authorized (CL-0N3) 25076 | -2/Quarantine | System corruption reached 10% 25119 | -2/Quarantine | Found Prototype Device 25119 | -2/Quarantine | Identified Exp. ECM Suite 25160 | -2/Quarantine | Central database locked down 25348 | -2/Quarantine | G-73 Enforcer reconstituted as Alpha 7 25348 | -2/Quarantine | Spotted Alpha 7 25371 | -2/Quarantine | Destroyed Alpha 7 25371 | -2/Quarantine | Alpha 7 reconstituted as CL-0N3 25441 | -2/Quarantine | Found Transdimensional Reconstructor 25446 | -2/Quarantine | Found Hpw. Transdimensional Reconstructor 25455 | -2/Quarantine | Found Dimensional Node Initializer 25466 | -2/Quarantine | Cryocooling Duct disabled 25481 | -2/Quarantine | Ambient heat levels rising (+20) 25481 | -2/Quarantine | Non-combat units ordered to evacuate 25600 | -2/Quarantine | Found Dimensional Node Initializer 25600 | -2/Quarantine | Initialized slip node 25651 | -2/Quarantine | Lost 3 parts (1n1u1w) 25706 | -2/Quarantine | Build established: Scavenger-Mutant 25728 | -2/Quarantine | P-80 Master reconstituted as Combat Programmer 25728 | -2/Quarantine | Spotted Combat Programmer 25739 | -2/Quarantine | Destroyed Combat Programmer 25739 | -2/Quarantine | Combat Programmer reconstituted as CL-0N3 26000 | -2/Quarantine | Found Alien Artifact 26165 | -2/Quarantine | O-32 Director reconstituted as Alpha 7 26165 | -2/Quarantine | Spotted Alpha 7 26210 | -2/Quarantine | System corruption reached 30% 26223 | -2/Quarantine | Destroyed Alpha 7 26223 | -2/Quarantine | Alpha 7 reconstituted as CL-0N3 26240 | -2/Quarantine | Lost 3 parts (1p1n1u) 26296 | -2/Quarantine | Found Alien Artifact 26312 | -2/Quarantine | Found Alien Artifact 26332 | -2/Quarantine | Build established: Hacker-Mutant 26339 | -2/Quarantine | Discovered new exit (range 13) 26540 | -2/Quarantine | W-44 Eye reconstituted as Alpha 7 26541 | -2/Quarantine | Spotted Alpha 7 26572 | -2/Quarantine | Alpha 7 reconstituted as CL-0N3 26696 | -2/Quarantine | Build established: Scavenger-Mutant 26883 | -2/Quarantine | P-80 Master reconstituted as Combat Programmer 26896 | -2/Quarantine | Spotted Combat Programmer 26964 | -2/Quarantine | Destroyed Combat Programmer 26964 | -2/Quarantine | Combat Programmer reconstituted as CL-0N3 27367 | -2/Quarantine | P-80 Master reconstituted as V2 27367 | -2/Quarantine | Spotted V2 27392 | -2/Quarantine | Destroyed V2 27392 | -2/Quarantine | V2 reconstituted as CL-0N3 27397 | -2/Quarantine | Destroyed CL-0N3 27411 | -2/Quarantine | Extracted schematics, analyses from CL-0N3's data core 27416 | -2/Quarantine | Found ID Mask 27536 | -2/Quarantine | Spotted Fortress 27616 | -2/Quarantine | Discovered new exit (range 5) 27616 | -2/Quarantine | Discovered new exit (range 6) 27619 | -2/Quarantine | Identified exit to Protoforge 27621 | -2/Quarantine | Entered Protoforge 27622 | -2/Protoforge | Superfortress began startup sequence 27672 | -2/Protoforge | Spotted Hotshot 27731 | -2/Protoforge | Spotted B-90 Cyclops 27781 | -2/Protoforge | Identified Core Reset Matrix 27781 | -2/Protoforge | Identified Subatomic Replicator 27781 | -2/Protoforge | Identified Terrabomb 27781 | -2/Protoforge | Used Core Reset Matrix 27785 | -2/Protoforge | Sensed 2 artifacts in vicinity 28008 | -2/Protoforge | ID Mask engaged 28025 | -2/Protoforge | Spotted Hotshot 28025 | -2/Protoforge | Spotted Hotshot 28027 | -2/Protoforge | Spotted Hotshot 28051 | -2/Protoforge | Spotted Hotshot 28051 | -2/Protoforge | Spotted Hotshot 28110 | -2/Protoforge | ID Mask no longer valid 28171 | -2/Protoforge | Lost 3 parts (1p2n) 28258 | -2/Protoforge | Used Terrabomb 28258 | -2/Protoforge | Additional patrols dispatched to research labs 28275 | -2/Protoforge | Crushed by falling debris 28278 | -2/Protoforge | Crushed by falling debris 28282 | -2/Protoforge | Spotted V067-l 28339 | -2/Protoforge | Lost 6 parts (2n2u2w) 28363 | -2/Protoforge | Spotted Hotshot 28375 | -2/Protoforge | Lost 4 parts (2p2n) 28408 | -2/Protoforge | Spotted Hotshot 28410 | -2/Protoforge | Spotted Hotshot 28411 | -2/Protoforge | Spotted Hotshot 28420 | -2/Protoforge | Core integrity fell below 50% 28423 | -2/Protoforge | Initialized slip node 28423 | -2/Protoforge | Destroyed Hotshot 28431 | -2/Protoforge | Core integrity fell below 20% 28433 | -2/Protoforge | Spotted Immortal 28433 | -2/Protoforge | Spotted Immortal 28434 | -2/Protoforge | Spotted Decapitator 28434 | -2/Protoforge | Spotted Decapitator 28434 | -2/Protoforge | Spotted Decapitator 28434 | -2/Protoforge | Spotted Decapitator 28449 | -2/Protoforge | Destroyed by Hotshot with Improved Heavy Laser Last Messages --------------- 28424_ Acquired Hpw. Transdimensional Reconstructor. 28425_ Seismic Detector destroyed. 28426_ Dropped Adv. Force Field. 28426_ Adv. Melee Analysis Suite destroyed. 28426_ Critical hit (Burn: +37). 28426_ Dropped Mic. Antimatter Reactor. 28427_ Dropped Exp. ECM Suite. 28428_ Acquired Enh. Nova Cannon. 28432_ Exp. Signal Interpreter destroyed. 28433_ System corrupted: Heat flow error (+211). 28433_ Exp. Melee Analysis Suite destroyed. 28436_ Hotshot activates shielding mode. 28439_ Immortal springs to life. 28440_ ALERT: Potential suspicious activity detected, Programmers report to Protoforge Zone 3R. 28440_ Immortal springs to life. 28442_ Triggered Segregator Trap. 28442_ Arcs of energy rise from the floor. 28442_ Adv. Target Analyzer blown off. 28448_ System corrupted: Matter fused (-10). Map ----- +----------------------------------------------------+ | ?????????????????????????????????????????????????? | | ?????????????????????????????????????????????????? | | ?????????????????????????????????????????????????? | | ?????????????????????????????????????????????????? | | ?????????????????????????????????????????????????? | | ?????????????????????????????????????????????????? | | ?????????????????????????????????????????????????? | | ?????????????????????????????????????????????????? | | ?????????????????????????????????????????????????? | | ?????????????????????????????????????????????????? | | ??????????????????????? ????????????????????????? | | ??????????????????????? ????????????????????????? | | ??????????????????????? ????????????????????????? | | ??????????????????????# ##??????????????????????? | | ??????????????????????# "??????????????????????? | | ??????????????????????# ???????????????????????? | | ??????????????????????# ???????????????????????? | | ??????????????????????# ???????????????????????? | | ??????????????????????# #???????????????????????? | | ??????????????????????# #???????????????????????? | | ??????????????????????# #???????????????????????? | | ??????????????????????# #???????????????????????? | | ??????????????????????# #???????????????????????? | | ???????????####???????# #???????????????????????? | | ???????????# ######### ###################### ? | | ???????????# @ ? | | ???????????# l g g | | ???????????# l g p ? | | ???????????# ################## !! #####?????? | | ???????????# #???????????????# !* #???????? | | ???????????# #???????????????# ! #???????? | | ???????????# #???????????????# ######??? | | ???????? " ??????????????# ! #?? | | ????#" ] " ?????????#### # | | ????#" " "???????# " "" | | ????#" " "#?????## "! """ "" | | ????#" " ""#????## "% """""" ? | | ????#" " """"#???# "#""""#""" ? | | ????#" " """"#??# | | ?????" # ""#?# | | ?????" # ???## ## | | ?????"""??# ????# | | ??????????# ????#""""""""""""""""""""""""""" | | ?????????? " " ???#" [% | | ??????????""""""""???#" """"""""""""#""""""""""""" | | ???????????##?#?????# " " | | ????????????????????# " " | | ????????????????????#"" " | | ????????????????????# " # | | ????????????????????#"""" """""" """ | +----------------------------------------------------+ Best States ------------- Heat Dissipation 159 Energy Generation 65 Energy Capacity 600 Matter Stores 300 Matter Capacity 300 Sight Range 16 Robot Scan Range 20 Terrain Scan Range 20 Terrain Scan Density 10 ECM Strength 3 Jamming Range 16 Armor Coverage 900 Resistance: KI 25 Resistance: EM 50 Utility Shielding 90 Melee Speed Boost 50 Evasion (%) 80 Targeting Accuracy 20 Melee Accuracy 20 Target Analysis 8 Core Analysis 6 Recoil Reduction 4 Offensive Hacking 28 Relay Coupler Types 2 Relay Coupler Value 53 Authchip Count 3 Item Schematics ----------------- None Robot Schematics ------------------ None Fabricated ------------ Imp. Thunder Leg | x2 | -5/Factory | Authchip Imp. Thunder Leg | x2 | -2/Research | Authchip Femtoactuators | x1 | -2/Research | Authchip Repaired ---------- Exp. Sensor Array | 62% | -8/Materials | Broken Exp. Myomer Leg | 43% | -8/Materials | Broken Centrium Medium Armor Plating | 23% | -4/Factory Centrium Medium Armor Plating | 30% | -4/Factory Exp. Myomer Leg | 71% | -4/Factory Exp. Sensor Array | 3% | -3/Research Enh. Biometal Leg | 11% | -3/Testing Studied --------- None Alien Tech Used ----------------- Integrated Dissipator Transdimensional Reconstructor Dimensional Node Initializer Core Reset Matrix Terrabomb Achievements -------------- Bigger And Badder May I Have Another? Sixth Sense Who Guards The Bodyguard? Challenges ------------ None Game ------ Seed SmartbombZhirovMallet Manual? 0 Play Time 04:51:18 Cumulative 876.2 hours Start 2025.10.22 @ 20:21:22 End 2025.10.30 @ 00:44:21 Sessions 5 Manual Loads 0 Difficulty Rogue Special Mode None Game No. 803 Rogue 716 Adventurer 87 Explorer 0 Win Type - Total 57 Types 9/4/31/2/1/1/5/1/1/2 Lore% 97 Gallery% 93 Achievement% 65 Wizard Run 0 Options --------- Layout 0 ASCII 0 Keyboard 1 Movement Numpad Keybinds 0 Fullscreen 2 Font 18/SmallcapsGlow Map View 76x50 Zoom Use 0% Tactical HUD 1 Map Filters NONE Filters NONE Steam 1 RUN: 75965ece-8cfc-4339-8550-f8a50182148a